{"text_format":"1","workbook":"xlsx","n_sheets":31,"sheets":["General data","XBRL Errors","Index","Show","Hierarchies","TG0001","TG0101","TG0102","TG0103","TG0201","TG0202","TG0301","TG0302","TG0303","TG0401","TG0402","TG0404","TG0501","TG0502","TG0503","TG0504","TG0601","TG0602","TG0603","TG0604","TG0605","TG0606","TG0701","TG0702","TG0703","TG0704"],"not_rendered":{"charts":0,"images":3,"macros":1,"external_links":0,"defined_names":89,"comments":0,"pivot_tables":0},"unopened":[],"bounds":{"document_bytes":16777216,"sheet_cells":100000,"rows_first":2000,"rows_last":500,"rows_between":2000,"halvings":0,"cell_chars":16384,"cell_head_chars":4096},"cells_cut":0,"cells_raw":0,"read":"whole","date_system":"1900"}

{"sheet":"General data","index":0,"n_rows":247,"n_cols":23,"rows_kept":247,"cut":false,"hidden":false,"merged":[[0,6,2,6],[3,0,5,9]]}
[null,null,null,null,null,null,null,"Version:",null,"2.0.0.1",null,null,null,null,null,null,"Not applicable/All geographical areas","http://standards.iso.org/iso/17442","Module with all tables","MSR-ALL","01","EUR","NL MSR 2.0.0"]
[null,null,null,null,null,null,null,null,null,null,null,null,null,null,null,null,"AFGHANISTAN","http://standards.iso.org/iso/17442","MSR Monthly Securities Reporting - Securities holdings and securities issued","MSR-SHSI","14","AED"]
[null,null,null,null,null,null,null," ",null,null,null,null,null,null,null,null,"ALBANIA","http://standards.iso.org/iso/17442","MSR Monthly Securities Reporting - Holdings","MSR-HOLD","15","AFN"]
[null,null,null,null,null,null,null,null,null,null,null,null,null,null,null,null,"ALGERIA","http://standards.iso.org/iso/17442","MSR Monthly Securities Reporting - Securitization Vehicles","MSR-SV","16","ALL"]
[null,null,null,null,null,null,null,null,null,null,null,null,null,null,null,null,"AMERICAN SAMOA","http://standards.iso.org/iso/17442","MSR Monthly Securities Reporting - Custodians","MSR-CUST","17","AMD"]
[null,null,null,null,null,null,null,null,null,null,null,null,null,null,null,null,"ANDORRA","http://standards.iso.org/iso/17442",null,null,"18","ANG"]
[null,null,null,null,null,null,null,null,null,null,null,null,null,null,null,null,"ANGOLA","http://standards.iso.org/iso/17442",null,null,"19","AOA"]
[null,"General Data",null,null,null,null,null,null,null,null,null,"/General data label{B}","/General data value{E}",null,null,null,"ANGUILLA","http://standards.iso.org/iso/17442",null,null,"20","ARS"]
[null,null,null,null,null,null,null,null,null,null,null,null,null,null,null,null,"ANTARCTICA","http://standards.iso.org/iso/17442",null,null,"All","AUD"]
["*","Identifier",":","LEGALIDENTIFIER20POS",{"$f":"\"\"&D10","v":"LEGALIDENTIFIER20POS"},{"$f":"IF(D10=\"\",1,0)","v":0},null,null,null,null,null,null,null,null,null,null,"ANTIGUA AND BARBUDA","http://standards.iso.org/iso/17442",null,null,"All","AWG"]
[null,null,null,null,null,null,null,null,null,null,null,null,null,null,null,null,"ARGENTINA","http://standards.iso.org/iso/17442",null,null,null,"AZN"]
["*","Period start date",":","2020-01-01",{"$f":"D12","v":"2020-01-01"},{"$f":"IF(D12=\"\",1,0)","v":0},null,null,null,null,null,null,null,null,null,null,"ARMENIA","http://standards.iso.org/iso/17442",null,null,null,"BAM"]
[null,null,null,null,null,null,null,null,null,null,null,null,null,null,null,null,"ARUBA","http://standards.iso.org/iso/17442",null,null,null,"BBD"]
["*","Period end date",":","2020-12-31",{"$f":"D14","v":"2020-12-31"},{"$f":"IF(D14=\"\",1,0)","v":0},null,null,null,null,null,null,null,null,null,null,"AUSTRALIA","http://standards.iso.org/iso/17442",null,null,null,"BDT"]
[null,null,null,null,null,null,null,null,null,null,null,null,null,null,null,null,"AUSTRIA","http://standards.iso.org/iso/17442",null,null,null,"BGN"]
[null,"Country",":","Not applicable/All geographical areas",null,null,null,null,null,null,null,null,null,null,null,null,"AZERBAIJAN","http://standards.iso.org/iso/17442",null,null,null,"BHD"]
[null,null,null,null,null,null,null,null,null,null,null,null,null,null,null,null,"BAHAMAS","http://standards.iso.org/iso/17442",null,null,null,"BIF"]
["*","Filing Currency",":","EUR",{"$f":"\"\"&D18","v":"EUR"},{"$f":"IF(D18=\"\",1,0)","v":0},null,null,null,null,null,null,null,null,null,null,"BAHRAIN","http://standards.iso.org/iso/17442",null,null,null,"BMD"]
[null,null,null,null,null,null,null,null,null,null,null,null,null,null,null,null,"BANGLADESH","http://standards.iso.org/iso/17442",null,null,null,"BND"]
["*","Taxonomy",":","NL MSR 2.0.0",null,{"$f":"IF(D20=\"\",1,0)","v":0},null,null,null,null,null,null,null,null,null,null,"BARBADOS","http://standards.iso.org/iso/17442",null,null,null,"BOB"]
[null,null,null,null,null,null,null,null,null,null,null,null,null,null,null,null,"BELARUS","http://standards.iso.org/iso/17442",null,null,null,"BRL"]
["*","Module",":","Module with all tables",{"$f":"IFERROR(VLOOKUP(D22,S:T,2,FALSE),\"\")","v":"MSR-ALL"},{"$f":"IF(D22=\"\",1,0)","v":0},null,null,null,null,null,null,null,null,null,null,"BELGIUM","http://www.swift.com",null,null,null,"BSD"]
[null,null,null,null,null,null,null,null,null,null,null,null,null,null,null,null,"BELIZE","http://standards.iso.org/iso/17442",null,null,null,"BTN"]
[null,null,null,null,null,null,null,null,null,null,null,null,null,null,null,null,"BENIN","http://standards.iso.org/iso/17442",null,null,null,"BWP"]
[null,"Advanced Requirements",null,null,null,null,null,null,null,null,null,null,null,null,null,null,"BERMUDA","http://standards.iso.org/iso/17442",null,null,null,"BYN"]
[null,null,null,null,null,null,null,null,null,null,null,null,null,null,null,null,"BHUTAN","http://standards.iso.org/iso/17442",null,null,null,"BZD"]
[null,"Identifier scheme",":",{"$f":"IFERROR(VLOOKUP(D16,Q:R,2,FALSE),R1)","v":"http://standards.iso.org/iso/17442"},{"$f":"D27","v":"http://standards.iso.org/iso/17442"},null,null,null,null,null,null,null,null,null,null,null,"BOLIVIA, PLURINATIONAL STATE OF","http://standards.iso.org/iso/17442",null,null,null,"CAD"]
[null,null,null,null,null,null,null,null,null,null,null,null,null,null,null,null,"BRAZIL","http://standards.iso.org/iso/17442",null,null,null,"COP"]
[null,"Monetary decimals",":",null,null,null,null,null,null,null,null,null,null,null,null,null,"BRITISH INDIAN OCEAN TERRITORY","http://standards.iso.org/iso/17442",null,null,null,"CRC"]
[null,null,null,null,null,null,null,null,null,null,null,null,null,null,null,null,"BRUNEI DARUSSALAM","http://standards.iso.org/iso/17442",null,null,null,"CUC"]
[null,"Monetary precision",":",-3,null,{"$f":" 0.5 * 10^(-1 * PP_MonetaryPrecision)","v":500},null,null,null,null,null,null,null,null,null,null,"BULGARIA","http://standards.iso.org/iso/17442",null,null,null,"CUP"]
[null,null,null,null,null,null,null,null,null,null,null,null,null,null,null,null,"BURKINA FASO","http://standards.iso.org/iso/17442",null,null,null,"CVE"]
[null,"Pure decimals",":",4,null,{"$f":" 0.5 * 10^(-1 * PP_DecimalPrecision)","v":5.0000000000000002E-5},null,null,null,null,null,null,null,null,null,null,"BURUNDI","http://standards.iso.org/iso/17442",null,null,null,"CZK"]
[null,null,null,null,null,null,null,null,null,null,null,null,null,null,null,null,"CAMBODIA","http://standards.iso.org/iso/17442",null,null,null,"DJF"]
[null,"Pure precision",":",4,null,null,null,"#XBRL made simple!",null,null,null,null,null,null,null,null,"CAMEROON","http://standards.iso.org/iso/17442",null,null,null,"DKK"]
[null,null,null,null,null,null,null,null,null,null,null,null,null,null,null,null,"CANADA","http://standards.iso.org/iso/17442",null,null,null,"DOP"]
[null,"Concatenate Errors",":",false,null,null,null,null,null,null,null,null,null,null,null,null,"CAPE VERDE","http://standards.iso.org/iso/17442",null,null,null,"DZD"]
[null,"Additional Requirements (Country specific)",null,null,null,null,null,null,null,null,null,null,null,null,null,null,"CAYMAN ISLANDS","http://standards.iso.org/iso/17442",null,null,null,"EGP"]
["BELGIUM",null,null,null,null,null,null,null,null,null,null,null,null,null,null,null,"CENTRAL AFRICAN REPUBLIC","http://standards.iso.org/iso/17442",null,null,null,"ERN"]
["BELGIUM","Post Parsing features",":",null,null,{"$f":"IF(AND(A40=PP_Country,D40=\"\"),1,0)","v":0},null,null,null,null,null,null,null,null,null,null,"CHAD","http://standards.iso.org/iso/17442",null,null,null,"ETB"]
["BELGIUM",null,null,null,null,null,null,null,null,null,null,null,null,null,null,null,"CHILE","http://standards.iso.org/iso/17442",null,null,null,"EUR"]
["BELGIUM","Reporter e-mail",":",null,null,null,null,null,null,null,null,null,null,null,null,null,"CHINA","http://standards.iso.org/iso/17442",null,null,null,"FJD"]
["BELGIUM",null,null,null,null,null,null,null,null,null,null,null,null,null,null,null,"CHRISTMAS ISLAND","http://standards.iso.org/iso/17442",null,null,null,"FKP"]
["BELGIUM","Declarer Type",":",null,{"$f":"\"\"&D44","v":""},{"$f":"IF(AND(A44=PP_Country,D44=\"\"),1,0)","v":0},null,null,null,null,null,null,null,null,null,null,"COCOS (KEELING) ISLANDS","http://standards.iso.org/iso/17442",null,null,null,"GBP"]
["BELGIUM",null,null,null,null,null,null,null,null,null,null,null,null,null,null,null,"COLOMBIA","http://standards.iso.org/iso/17442",null,null,null,"GEL"]
["BELGIUM","Domain",":",null,{"$f":"\"\"&D46","v":""},{"$f":"IF(AND(A46=PP_Country,D46=\"\"),1,0)","v":0},null,null,null,null,null,null,null,null,null,null,"COMOROS","http://standards.iso.org/iso/17442",null,null,null,"GGP"]
["BELGIUM",null,null,null,null,null,null,null,null,null,null,null,null,null,null,null,"CONGO","http://standards.iso.org/iso/17442",null,null,null,"GHS"]
[null,"ParsePort-specific parameters:",null,"SII_",null,null,null,null,null,null,null,null,null,null,null,null,"CONGO, THE DEMOCRATIC REPUBLIC OF THE","http://standards.iso.org/iso/17442",null,null,null,"GIP"]
[null,"Compress contexts",null,true,null,null,null,null,null,null,null,null,null,null,null,null,"COOK ISLANDS","http://standards.iso.org/iso/17442",null,null,null,"GMD"]
[null,"Language",null,"EN",null,null,null,null,null,null,null,null,null,null,null,null,"COSTA RICA","http://standards.iso.org/iso/17442",null,null,null,"GNF"]
[null,"Debug mode",null,false,null,null,null,null,null,null,null,null,null,null,null,null,"CÔTE D'IVOIRE","http://standards.iso.org/iso/17442",null,null,null,"GTQ"]
[null,"LookupValue fallback",null,false,null,null,null,null,null,null,null,null,null,null,null,null,"CROATIA","http://standards.iso.org/iso/17442",null,null,null,"GYD"]
[null,null,null,null,null,null,null,null,null,null,null,"//General data label{B}","//General data value{E}",null,null,null,"CUBA","http://standards.iso.org/iso/17442",null,null,null,"HKD"]
["BELGIUM",null,null,null,null,null,null,null,null,null,null,null,null,null,null,null,"CURAÇAO","http://standards.iso.org/iso/17442",null,null,null,"HNL"]
["BELGIUM",null,null,null,null,null,null,null,null,null,null,null,null,null,null,null,"CYPRUS","http://standards.iso.org/iso/17442",null,null,null,"HRK"]
[null,null,null,null,null,null,null,null,null,null,null,null,null,null,null,null,"CZECH REPUBLIC","http://standards.iso.org/iso/17442",null,null,null,"HTG"]
[null,null,null,null,null,null,null,null,null,null,null,null,null,null,null,null,"DENMARK","http://standards.iso.org/iso/17442",null,null,null,"HUF"]
[null,null,null,null,null,null,null,null,null,null,null,null,null,null,null,null,"DJIBOUTI","http://standards.iso.org/iso/17442",null,null,null,"IDR"]
[null,null,null,null,null,null,null,null,null,null,null,null,null,null,null,null,"DOMINICA","http://standards.iso.org/iso/17442",null,null,null,"ILS"]
[null,null,null,null,null,null,null,null,null,null,null,null,null,null,null,null,"DOMINICAN REPUBLIC","http://standards.iso.org/iso/17442",null,null,null,"IMP"]
[null,null,null,null,null,null,null,null,null,null,null,null,null,null,null,null,"ECUADOR","http://standards.iso.org/iso/17442",null,null,null,"INR"]
[null,null,null,null,null,null,null,null,null,null,null,null,null,null,null,null,"EGYPT","http://standards.iso.org/iso/17442",null,null,null,"IQD"]
[null,null,null,null,null,null,null,null,null,null,null,null,null,null,null,null,"EL SALVADOR","http://standards.iso.org/iso/17442",null,null,null,"IRR"]
[null,null,null,null,null,null,null,null,null,null,null,null,null,null,null,null,"EQUATORIAL GUINEA","http://standards.iso.org/iso/17442",null,null,null,"ISK"]
[null,null,null,null,null,null,null,null,null,null,null,null,null,null,null,null,"ERITREA","http://standards.iso.org/iso/17442",null,null,null,"JEP"]
[null,null,null,null,null,null,null,null,null,null,null,null,null,null,null,null,"ESTONIA","http://standards.iso.org/iso/17442",null,null,null,"JMD"]
[null,null,null,null,null,null,null,null,null,null,null,null,null,null,null,null,"ETHIOPIA","http://standards.iso.org/iso/17442",null,null,null,"JOD"]
[null,null,null,null,null,null,null,null,null,null,null,null,null,null,null,null,"FALKLAND ISLANDS (MALVINAS)","http://standards.iso.org/iso/17442",null,null,null,"JPY"]
[null,null,null,null,null,null,null,null,null,null,null,null,null,null,null,null,"FAROE ISLANDS","http://standards.iso.org/iso/17442",null,null,null,"KES"]
[null,null,null,null,null,null,null,null,null,null,null,null,null,null,null,null,"FIJI","http://standards.iso.org/iso/17442",null,null,null,"KGS"]
[null,null,null,null,null,null,null,null,null,null,null,null,null,null,null,null,"FINLAND","http://standards.iso.org/iso/17442",null,null,null,"KHR"]
[null,null,null,null,null,null,null,null,null,null,null,null,null,null,null,null,"FRANCE","http://standards.iso.org/iso/17442",null,null,null,"KMF"]
[null,null,null,null,null,null,null,null,null,null,null,null,null,null,null,null,"FRENCH GUIANA","http://standards.iso.org/iso/17442",null,null,null,"KPW"]
[null,null,null,null,null,null,null,null,null,null,null,null,null,null,null,null,"FRENCH POLYNESIA","http://standards.iso.org/iso/17442",null,null,null,"KRW"]
[null,null,null,null,null,null,null,null,null,null,null,null,null,null,null,null,"FRENCH SOUTHERN TERRITORIES","http://standards.iso.org/iso/17442",null,null,null,"KWD"]
[null,null,null,null,null,null,null,null,null,null,null,null,null,null,null,null,"GABON","http://standards.iso.org/iso/17442",null,null,null,"KYD"]
[null,null,null,null,null,null,null,null,null,null,null,null,null,null,null,null,"GAMBIA","http://standards.iso.org/iso/17442",null,null,null,"KZT"]
[null,null,null,null,null,null,null,null,null,null,null,null,null,null,null,null,"GEORGIA","http://standards.iso.org/iso/17442",null,null,null,"LAK"]
[null,null,null,null,null,null,null,null,null,null,null,null,null,null,null,null,"GERMANY","http://standards.iso.org/iso/17442",null,null,null,"LBP"]
[null,null,null,null,null,null,null,null,null,null,null,null,null,null,null,null,"GHANA","http://standards.iso.org/iso/17442",null,null,null,"LKR"]
[null,null,null,null,null,null,null,null,null,null,null,null,null,null,null,null,"GIBRALTAR","http://standards.iso.org/iso/17442",null,null,null,"LRD"]
[null,null,null,null,null,null,null,null,null,null,null,null,null,null,null,null,"GREECE","http://standards.iso.org/iso/17442",null,null,null,"LSL"]
[null,null,null,null,null,null,null,null,null,null,null,null,null,null,null,null,"GREENLAND","http://standards.iso.org/iso/17442",null,null,null,"LYD"]
[null,null,null,null,null,null,null,null,null,null,null,null,null,null,null,null,"GRENADA","http://standards.iso.org/iso/17442",null,null,null,"MAD"]
[null,null,null,null,null,null,null,null,null,null,null,null,null,null,null,null,"GUADELOUPE","http://standards.iso.org/iso/17442",null,null,null,"MDL"]
[null,null,null,null,null,null,null,null,null,null,null,null,null,null,null,null,"GUAM","http://standards.iso.org/iso/17442",null,null,null,"MGA"]
[null,null,null,null,null,null,null,null,null,null,null,null,null,null,null,null,"GUATEMALA","http://standards.iso.org/iso/17442",null,null,null,"MKD"]
[null,null,null,null,null,null,null,null,null,null,null,null,null,null,null,null,"GUERNSEY","http://standards.iso.org/iso/17442",null,null,null,"MMK"]
[null,null,null,null,null,null,null,null,null,null,null,null,null,null,null,null,"GUINEA","http://standards.iso.org/iso/17442",null,null,null,"MNT"]
[null,null,null,null,null,null,null,null,null,null,null,null,null,null,null,null,"GUINEA-BISSAU","http://standards.iso.org/iso/17442",null,null,null,"MOP"]
[null,null,null,null,null,null,null,null,null,null,null,null,null,null,null,null,"GUYANA","http://standards.iso.org/iso/17442",null,null,null,"MRO"]
[null,null,null,null,null,null,null,null,null,null,null,null,null,null,null,null,"HAITI","http://standards.iso.org/iso/17442",null,null,null,"MUR"]
[null,null,null,null,null,null,null,null,null,null,null,null,null,null,null,null,"HEARD ISLAND AND MCDONALD ISLANDS","http://standards.iso.org/iso/17442",null,null,null,"MVR"]
[null,null,null,null,null,null,null,null,null,null,null,null,null,null,null,null,"HOLY SEE (VATICAN CITY STATE)","http://standards.iso.org/iso/17442",null,null,null,"MWK"]
[null,null,null,null,null,null,null,null,null,null,null,null,null,null,null,null,"HONDURAS","http://standards.iso.org/iso/17442",null,null,null,"MXN"]
[null,null,null,null,null,null,null,null,null,null,null,null,null,null,null,null,"HONG KONG","http://standards.iso.org/iso/17442",null,null,null,"MYR"]
[null,null,null,null,null,null,null,null,null,null,null,null,null,null,null,null,"HUNGARY","http://standards.iso.org/iso/17442",null,null,null,"MZN"]
[null,null,null,null,null,null,null,null,null,null,null,null,null,null,null,null,"ICELAND","http://standards.iso.org/iso/17442",null,null,null,"NAD"]
[null,null,null,null,null,null,null,null,null,null,null,null,null,null,null,null,"INDIA","http://standards.iso.org/iso/17442",null,null,null,"NGN"]
[null,null,null,null,null,null,null,null,null,null,null,null,null,null,null,null,"INDONESIA","http://standards.iso.org/iso/17442",null,null,null,"NIO"]
[null,null,null,null,null,null,null,null,null,null,null,null,null,null,null,null,"IRAN, ISLAMIC REPUBLIC OF","http://standards.iso.org/iso/17442",null,null,null,"NOK"]
[null,null,null,null,null,null,null,null,null,null,null,null,null,null,null,null,"IRAQ","http://standards.iso.org/iso/17442",null,null,null,"NPR"]
[null,null,null,null,null,null,null,null,null,null,null,null,null,null,null,null,"IRELAND","http://standards.iso.org/iso/17442",null,null,null,"NZD"]
[null,null,null,null,null,null,null,null,null,null,null,null,null,null,null,null,"ISLE OF MAN","http://standards.iso.org/iso/17442",null,null,null,"OMR"]
[null,null,null,null,null,null,null,null,null,null,null,null,null,null,null,null,"ISRAEL","http://standards.iso.org/iso/17442",null,null,null,"PAB"]
[null,null,null,null,null,null,null,null,null,null,null,null,null,null,null,null,"ITALY","http://standards.iso.org/iso/17442",null,null,null,"PEN"]
[null,null,null,null,null,null,null,null,null,null,null,null,null,null,null,null,"JAMAICA","http://standards.iso.org/iso/17442",null,null,null,"PGK"]
[null,null,null,null,null,null,null,null,null,null,null,null,null,null,null,null,"JAPAN","http://standards.iso.org/iso/17442",null,null,null,"PHP"]
[null,null,null,null,null,null,null,null,null,null,null,null,null,null,null,null,"JERSEY","http://standards.iso.org/iso/17442",null,null,null,"PKR"]
[null,null,null,null,null,null,null,null,null,null,null,null,null,null,null,null,"JORDAN","http://standards.iso.org/iso/17442",null,null,null,"PLN"]
[null,null,null,null,null,null,null,null,null,null,null,null,null,null,null,null,"KAZAKHSTAN","http://standards.iso.org/iso/17442",null,null,null,"PYG"]
[null,null,null,null,null,null,null,null,null,null,null,null,null,null,null,null,"KENYA","http://standards.iso.org/iso/17442",null,null,null,"QAR"]
[null,null,null,null,null,null,null,null,null,null,null,null,null,null,null,null,"KIRIBATI","http://standards.iso.org/iso/17442",null,null,null,"RON"]
[null,null,null,null,null,null,null,null,null,null,null,null,null,null,null,null,"KOREA, DEMOCRATIC PEOPLE'S REPUBLIC OF","http://standards.iso.org/iso/17442",null,null,null,"RSD"]
[null,null,null,null,null,null,null,null,null,null,null,null,null,null,null,null,"KOREA, REPUBLIC OF","http://standards.iso.org/iso/17442",null,null,null,"RUB"]
[null,null,null,null,null,null,null,null,null,null,null,null,null,null,null,null,"KUWAIT","http://standards.iso.org/iso/17442",null,null,null,"RWF"]
[null,null,null,null,null,null,null,null,null,null,null,null,null,null,null,null,"KYRGYZSTAN","http://standards.iso.org/iso/17442",null,null,null,"SAR"]
[null,null,null,null,null,null,null,null,null,null,null,null,null,null,null,null,"LAO PEOPLE'S DEMOCRATIC REPUBLIC","http://standards.iso.org/iso/17442",null,null,null,"SBD"]
[null,null,null,null,null,null,null,null,null,null,null,null,null,null,null,null,"LATVIA","http://standards.iso.org/iso/17442",null,null,null,"SCR"]
[null,null,null,null,null,null,null,null,null,null,null,null,null,null,null,null,"LEBANON","http://standards.iso.org/iso/17442",null,null,null,"SDG"]
[null,null,null,null,null,null,null,null,null,null,null,null,null,null,null,null,"LESOTHO","http://standards.iso.org/iso/17442",null,null,null,"SEK"]
[null,null,null,null,null,null,null,null,null,null,null,null,null,null,null,null,"LIBERIA","http://standards.iso.org/iso/17442",null,null,null,"SGD"]
[null,null,null,null,null,null,null,null,null,null,null,null,null,null,null,null,"LIBYA","http://standards.iso.org/iso/17442",null,null,null,"SHP"]
[null,null,null,null,null,null,null,null,null,null,null,null,null,null,null,null,"LIECHTENSTEIN","http://standards.iso.org/iso/17442",null,null,null,"SLL"]
[null,null,null,null,null,null,null,null,null,null,null,null,null,null,null,null,"LITHUANIA","http://standards.iso.org/iso/17442",null,null,null,"SOS"]
[null,null,null,null,null,null,null,null,null,null,null,null,null,null,null,null,"LUXEMBOURG","http://www.cssf.lu",null,null,null,"SPL"]
[null,null,null,null,null,null,null,null,null,null,null,null,null,null,null,null,"MACAO","http://standards.iso.org/iso/17442",null,null,null,"SRD"]
[null,null,null,null,null,null,null,null,null,null,null,null,null,null,null,null,"MACEDONIA, THE FORMER YUGOSLAV REPUBLIC OF","http://standards.iso.org/iso/17442",null,null,null,"STD"]
[null,null,null,null,null,null,null,null,null,null,null,null,null,null,null,null,"MADAGASCAR","http://standards.iso.org/iso/17442",null,null,null,"SVC"]
[null,null,null,null,null,null,null,null,null,null,null,null,null,null,null,null,"MALAWI","http://standards.iso.org/iso/17442",null,null,null,"SYP"]
[null,null,null,null,null,null,null,null,null,null,null,null,null,null,null,null,"MALAYSIA","http://standards.iso.org/iso/17442",null,null,null,"SZL"]
[null,null,null,null,null,null,null,null,null,null,null,null,null,null,null,null,"MALDIVES","http://standards.iso.org/iso/17442",null,null,null,"THB"]
[null,null,null,null,null,null,null,null,null,null,null,null,null,null,null,null,"MALI","http://standards.iso.org/iso/17442",null,null,null,"TJS"]
[null,null,null,null,null,null,null,null,null,null,null,null,null,null,null,null,"MALTA","http://standards.iso.org/iso/17442",null,null,null,"TMT"]
[null,null,null,null,null,null,null,null,null,null,null,null,null,null,null,null,"MARSHALL ISLANDS","http://standards.iso.org/iso/17442",null,null,null,"TND"]
[null,null,null,null,null,null,null,null,null,null,null,null,null,null,null,null,"MARTINIQUE","http://standards.iso.org/iso/17442",null,null,null,"TOP"]
[null,null,null,null,null,null,null,null,null,null,null,null,null,null,null,null,"MAURITANIA","http://standards.iso.org/iso/17442",null,null,null,"TRY"]
[null,null,null,null,null,null,null,null,null,null,null,null,null,null,null,null,"MAURITIUS","http://standards.iso.org/iso/17442",null,null,null,"TTD"]
[null,null,null,null,null,null,null,null,null,null,null,null,null,null,null,null,"MAYOTTE","http://standards.iso.org/iso/17442",null,null,null,"TVD"]
[null,null,null,null,null,null,null,null,null,null,null,null,null,null,null,null,"MEXICO","http://standards.iso.org/iso/17442",null,null,null,"TWD"]
[null,null,null,null,null,null,null,null,null,null,null,null,null,null,null,null,"MICRONESIA, FEDERATED STATES OF","http://standards.iso.org/iso/17442",null,null,null,"TZS"]
[null,null,null,null,null,null,null,null,null,null,null,null,null,null,null,null,"MOLDOVA, REPUBLIC OF","http://standards.iso.org/iso/17442",null,null,null,"UAH"]
[null,null,null,null,null,null,null,null,null,null,null,null,null,null,null,null,"MONACO","http://standards.iso.org/iso/17442",null,null,null,"UGX"]
[null,null,null,null,null,null,null,null,null,null,null,null,null,null,null,null,"MONGOLIA","http://standards.iso.org/iso/17442",null,null,null,"USD"]
[null,null,null,null,null,null,null,null,null,null,null,null,null,null,null,null,"MONTENEGRO","http://standards.iso.org/iso/17442",null,null,null,"UYU"]
[null,null,null,null,null,null,null,null,null,null,null,null,null,null,null,null,"MONTSERRAT","http://standards.iso.org/iso/17442",null,null,null,"UZS"]
[null,null,null,null,null,null,null,null,null,null,null,null,null,null,null,null,"MOROCCO","http://standards.iso.org/iso/17442",null,null,null,"VEF"]
[null,null,null,null,null,null,null,null,null,null,null,null,null,null,null,null,"MOZAMBIQUE","http://standards.iso.org/iso/17442",null,null,null,"VND"]
[null,null,null,null,null,null,null,null,null,null,null,null,null,null,null,null,"MYANMAR","http://standards.iso.org/iso/17442",null,null,null,"VUV"]
[null,null,null,null,null,null,null,null,null,null,null,null,null,null,null,null,"NAMIBIA","http://standards.iso.org/iso/17442",null,null,null,"WST"]
[null,null,null,null,null,null,null,null,null,null,null,null,null,null,null,null,"NAURU","http://standards.iso.org/iso/17442",null,null,null,"XAF"]
[null,null,null,null,null,null,null,null,null,null,null,null,null,null,null,null,"NEPAL","http://standards.iso.org/iso/17442",null,null,null,"XCD"]
[null,null,null,null,null,null,null,null,null,null,null,null,null,null,null,null,"NETHERLANDS","http://standards.iso.org/iso/17442",null,null,null,"XDR"]
[null,null,null,null,null,null,null,null,null,null,null,null,null,null,null,null,"NEW CALEDONIA","http://standards.iso.org/iso/17442",null,null,null,"XOF"]
[null,null,null,null,null,null,null,null,null,null,null,null,null,null,null,null,"NEW ZEALAND","http://standards.iso.org/iso/17442",null,null,null,"XPF"]
[null,null,null,null,null,null,null,null,null,null,null,null,null,null,null,null,"NICARAGUA","http://standards.iso.org/iso/17442",null,null,null,"YER"]
[null,null,null,null,null,null,null,null,null,null,null,null,null,null,null,null,"NIGER","http://standards.iso.org/iso/17442",null,null,null,"ZAR"]
[null,null,null,null,null,null,null,null,null,null,null,null,null,null,null,null,"NIGERIA","http://standards.iso.org/iso/17442",null,null,null,"ZMW"]
[null,null,null,null,null,null,null,null,null,null,null,null,null,null,null,null,"NIUE","http://standards.iso.org/iso/17442",null,null,null,"ZWD"]
[null,null,null,null,null,null,null,null,null,null,null,null,null,null,null,null,"NORFOLK ISLAND","http://standards.iso.org/iso/17442"]
[null,null,null,null,null,null,null,null,null,null,null,null,null,null,null,null,"NORTHERN MARIANA ISLANDS","http://standards.iso.org/iso/17442"]
[null,null,null,null,null,null,null,null,null,null,null,null,null,null,null,null,"NORWAY","SC"]
[null,null,null,null,null,null,null,null,null,null,null,null,null,null,null,null,"OMAN","http://standards.iso.org/iso/17442"]
[null,null,null,null,null,null,null,null,null,null,null,null,null,null,null,null,"PAKISTAN","http://standards.iso.org/iso/17442"]
[null,null,null,null,null,null,null,null,null,null,null,null,null,null,null,null,"PALAU","http://standards.iso.org/iso/17442"]
[null,null,null,null,null,null,null,null,null,null,null,null,null,null,null,null,"PALESTINIAN TERRITORY, OCCUPIED","http://standards.iso.org/iso/17442"]
[null,null,null,null,null,null,null,null,null,null,null,null,null,null,null,null,"PANAMA","http://standards.iso.org/iso/17442"]
[null,null,null,null,null,null,null,null,null,null,null,null,null,null,null,null,"PAPUA NEW GUINEA","http://standards.iso.org/iso/17442"]
[null,null,null,null,null,null,null,null,null,null,null,null,null,null,null,null,"PARAGUAY","http://standards.iso.org/iso/17442"]
[null,null,null,null,null,null,null,null,null,null,null,null,null,null,null,null,"PERU","http://standards.iso.org/iso/17442"]
[null,null,null,null,null,null,null,null,null,null,null,null,null,null,null,null,"PHILIPPINES","http://standards.iso.org/iso/17442"]
[null,null,null,null,null,null,null,null,null,null,null,null,null,null,null,null,"PITCAIRN","http://standards.iso.org/iso/17442"]
[null,null,null,null,null,null,null,null,null,null,null,null,null,null,null,null,"POLAND","http://standards.iso.org/iso/17442"]
[null,null,null,null,null,null,null,null,null,null,null,null,null,null,null,null,"PORTUGAL","http://standards.iso.org/iso/17442"]
[null,null,null,null,null,null,null,null,null,null,null,null,null,null,null,null,"PUERTO RICO","http://standards.iso.org/iso/17442"]
[null,null,null,null,null,null,null,null,null,null,null,null,null,null,null,null,"QATAR","http://standards.iso.org/iso/17442"]
[null,null,null,null,null,null,null,null,null,null,null,null,null,null,null,null,"RÉUNION","http://standards.iso.org/iso/17442"]
[null,null,null,null,null,null,null,null,null,null,null,null,null,null,null,null,"ROMANIA","http://standards.iso.org/iso/17442"]
[null,null,null,null,null,null,null,null,null,null,null,null,null,null,null,null,"RUSSIAN FEDERATION","http://standards.iso.org/iso/17442"]
[null,null,null,null,null,null,null,null,null,null,null,null,null,null,null,null,"RWANDA","http://standards.iso.org/iso/17442"]
[null,null,null,null,null,null,null,null,null,null,null,null,null,null,null,null,"SAINT BARTHÉLEMY","http://standards.iso.org/iso/17442"]
[null,null,null,null,null,null,null,null,null,null,null,null,null,null,null,null,"SAINT HELENA, ASCENSION AND TRISTAN DA CUNHA","http://standards.iso.org/iso/17442"]
[null,null,null,null,null,null,null,null,null,null,null,null,null,null,null,null,"SAINT KITTS AND NEVIS","http://standards.iso.org/iso/17442"]
[null,null,null,null,null,null,null,null,null,null,null,null,null,null,null,null,"SAINT LUCIA","http://standards.iso.org/iso/17442"]
[null,null,null,null,null,null,null,null,null,null,null,null,null,null,null,null,"SAINT MARTIN (FRENCH PART)","http://standards.iso.org/iso/17442"]
[null,null,null,null,null,null,null,null,null,null,null,null,null,null,null,null,"SAINT PIERRE AND MIQUELON","http://standards.iso.org/iso/17442"]
[null,null,null,null,null,null,null,null,null,null,null,null,null,null,null,null,"SAINT VINCENT AND THE GRENADINES","http://standards.iso.org/iso/17442"]
[null,null,null,null,null,null,null,null,null,null,null,null,null,null,null,null,"SAMOA","http://standards.iso.org/iso/17442"]
[null,null,null,null,null,null,null,null,null,null,null,null,null,null,null,null,"SAN MARINO","http://standards.iso.org/iso/17442"]
[null,null,null,null,null,null,null,null,null,null,null,null,null,null,null,null,"SAO TOME AND PRINCIPE","http://standards.iso.org/iso/17442"]
[null,null,null,null,null,null,null,null,null,null,null,null,null,null,null,null,"SAUDI ARABIA","http://standards.iso.org/iso/17442"]
[null,null,null,null,null,null,null,null,null,null,null,null,null,null,null,null,"SENEGAL","http://standards.iso.org/iso/17442"]
[null,null,null,null,null,null,null,null,null,null,null,null,null,null,null,null,"SERBIA","http://standards.iso.org/iso/17442"]
[null,null,null,null,null,null,null,null,null,null,null,null,null,null,null,null,"SEYCHELLES","http://standards.iso.org/iso/17442"]
[null,null,null,null,null,null,null,null,null,null,null,null,null,null,null,null,"SIERRA LEONE","http://standards.iso.org/iso/17442"]
[null,null,null,null,null,null,null,null,null,null,null,null,null,null,null,null,"SINGAPORE","http://standards.iso.org/iso/17442"]
[null,null,null,null,null,null,null,null,null,null,null,null,null,null,null,null,"SINT MAARTEN (DUTCH PART)","http://standards.iso.org/iso/17442"]
[null,null,null,null,null,null,null,null,null,null,null,null,null,null,null,null,"SLOVAKIA","http://standards.iso.org/iso/17442"]
[null,null,null,null,null,null,null,null,null,null,null,null,null,null,null,null,"SLOVENIA","http://standards.iso.org/iso/17442"]
[null,null,null,null,null,null,null,null,null,null,null,null,null,null,null,null,"SOLOMON ISLANDS","http://standards.iso.org/iso/17442"]
[null,null,null,null,null,null,null,null,null,null,null,null,null,null,null,null,"SOMALIA","http://standards.iso.org/iso/17442"]
[null,null,null,null,null,null,null,null,null,null,null,null,null,null,null,null,"SOUTH AFRICA","http://standards.iso.org/iso/17442"]
[null,null,null,null,null,null,null,null,null,null,null,null,null,null,null,null,"SOUTH GEORGIA AND THE SOUTH SANDWICH ISLANDS","http://standards.iso.org/iso/17442"]
[null,null,null,null,null,null,null,null,null,null,null,null,null,null,null,null,"SOUTH SUDAN","http://standards.iso.org/iso/17442"]
[null,null,null,null,null,null,null,null,null,null,null,null,null,null,null,null,"SPAIN","http://standards.iso.org/iso/17442"]
[null,null,null,null,null,null,null,null,null,null,null,null,null,null,null,null,"SRI LANKA","http://standards.iso.org/iso/17442"]
[null,null,null,null,null,null,null,null,null,null,null,null,null,null,null,null,"SUDAN","http://standards.iso.org/iso/17442"]
[null,null,null,null,null,null,null,null,null,null,null,null,null,null,null,null,"SURINAME","http://standards.iso.org/iso/17442"]
[null,null,null,null,null,null,null,null,null,null,null,null,null,null,null,null,"SVALBARD AND JAN MAYEN","http://standards.iso.org/iso/17442"]
[null,null,null,null,null,null,null,null,null,null,null,null,null,null,null,null,"SWAZILAND","http://standards.iso.org/iso/17442"]
[null,null,null,null,null,null,null,null,null,null,null,null,null,null,null,null,"SWEDEN","http://www.fi.se/instnr"]
[null,null,null,null,null,null,null,null,null,null,null,null,null,null,null,null,"SWITZERLAND","http://standards.iso.org/iso/17442"]
[null,null,null,null,null,null,null,null,null,null,null,null,null,null,null,null,"SYRIAN ARAB REPUBLIC","http://standards.iso.org/iso/17442"]
[null,null,null,null,null,null,null,null,null,null,null,null,null,null,null,null,"TAIWAN, PROVINCE OF CHINA","http://standards.iso.org/iso/17442"]
[null,null,null,null,null,null,null,null,null,null,null,null,null,null,null,null,"TAJIKISTAN","http://standards.iso.org/iso/17442"]
[null,null,null,null,null,null,null,null,null,null,null,null,null,null,null,null,"TANZANIA, UNITED REPUBLIC OF","http://standards.iso.org/iso/17442"]
[null,null,null,null,null,null,null,null,null,null,null,null,null,null,null,null,"THAILAND","http://standards.iso.org/iso/17442"]
[null,null,null,null,null,null,null,null,null,null,null,null,null,null,null,null,"TIMOR-LESTE","http://standards.iso.org/iso/17442"]
[null,null,null,null,null,null,null,null,null,null,null,null,null,null,null,null,"TOGO","http://standards.iso.org/iso/17442"]
[null,null,null,null,null,null,null,null,null,null,null,null,null,null,null,null,"TOKELAU","http://standards.iso.org/iso/17442"]
[null,null,null,null,null,null,null,null,null,null,null,null,null,null,null,null,"TONGA","http://standards.iso.org/iso/17442"]
[null,null,null,null,null,null,null,null,null,null,null,null,null,null,null,null,"TRINIDAD AND TOBAGO","http://standards.iso.org/iso/17442"]
[null,null,null,null,null,null,null,null,null,null,null,null,null,null,null,null,"TUNISIA","http://standards.iso.org/iso/17442"]
[null,null,null,null,null,null,null,null,null,null,null,null,null,null,null,null,"TURKEY","http://standards.iso.org/iso/17442"]
[null,null,null,null,null,null,null,null,null,null,null,null,null,null,null,null,"TURKMENISTAN","http://standards.iso.org/iso/17442"]
[null,null,null,null,null,null,null,null,null,null,null,null,null,null,null,null,"TURKS AND CAICOS ISLANDS","http://standards.iso.org/iso/17442"]
[null,null,null,null,null,null,null,null,null,null,null,null,null,null,null,null,"TUVALU","http://standards.iso.org/iso/17442"]
[null,null,null,null,null,null,null,null,null,null,null,null,null,null,null,null,"UGANDA","http://standards.iso.org/iso/17442"]
[null,null,null,null,null,null,null,null,null,null,null,null,null,null,null,null,"UKRAINE","http://standards.iso.org/iso/17442"]
[null,null,null,null,null,null,null,null,null,null,null,null,null,null,null,null,"UNITED ARAB EMIRATES","http://standards.iso.org/iso/17442"]
[null,null,null,null,null,null,null,null,null,null,null,null,null,null,null,null,"UNITED KINGDOM","http://standards.iso.org/iso/17442"]
[null,null,null,null,null,null,null,null,null,null,null,null,null,null,null,null,"UNITED STATES","http://standards.iso.org/iso/17442"]
[null,null,null,null,null,null,null,null,null,null,null,null,null,null,null,null,"UNITED STATES MINOR OUTLYING ISLANDS","http://standards.iso.org/iso/17442"]
[null,null,null,null,null,null,null,null,null,null,null,null,null,null,null,null,"URUGUAY","http://standards.iso.org/iso/17442"]
[null,null,null,null,null,null,null,null,null,null,null,null,null,null,null,null,"UZBEKISTAN","http://standards.iso.org/iso/17442"]
[null,null,null,null,null,null,null,null,null,null,null,null,null,null,null,null,"VANUATU","http://standards.iso.org/iso/17442"]
[null,null,null,null,null,null,null,null,null,null,null,null,null,null,null,null,"VENEZUELA, BOLIVARIAN REPUBLIC OF","http://standards.iso.org/iso/17442"]
[null,null,null,null,null,null,null,null,null,null,null,null,null,null,null,null,"VIET NAM","http://standards.iso.org/iso/17442"]
[null,null,null,null,null,null,null,null,null,null,null,null,null,null,null,null,"VIRGIN ISLANDS, BRITISH","http://standards.iso.org/iso/17442"]
[null,null,null,null,null,null,null,null,null,null,null,null,null,null,null,null,"VIRGIN ISLANDS, U.S.","http://standards.iso.org/iso/17442"]
[null,null,null,null,null,null,null,null,null,null,null,null,null,null,null,null,"WALLIS AND FUTUNA","http://standards.iso.org/iso/17442"]
[null,null,null,null,null,null,null,null,null,null,null,null,null,null,null,null,"WESTERN SAHARA","http://standards.iso.org/iso/17442"]
[null,null,null,null,null,null,null,null,null,null,null,null,null,null,null,null,"YEMEN","http://standards.iso.org/iso/17442"]
[null,null,null,null,null,null,null,null,null,null,null,null,null,null,null,null,"ZAMBIA","http://standards.iso.org/iso/17442"]
[null,null,null,null,null,null,null,null,null,null,null,null,null,null,null,null,"ZIMBABWE","http://standards.iso.org/iso/17442"]
[null,null,null,null,null,null,null,null,null,null,null,null,null,null,null,null,"ÅLAND ISLANDS","http://standards.iso.org/iso/17442"]
[null,null,null,null,null,null,null,null,null,null,null,null,null,null,null,null,"Other Countries","http://standards.iso.org/iso/17442"]

{"sheet":"XBRL Errors","index":1,"n_rows":1,"n_cols":2,"rows_kept":1,"cut":false,"hidden":false,"merged":[]}
["Timestamp","Error"]

{"sheet":"Index","index":2,"n_rows":31,"n_cols":5,"rows_kept":31,"cut":false,"hidden":false,"merged":[[2,1,2,14]]}
[]
[]
[null,"Index"]
[]
[null,"Template Code","Template Name","Reporting Status"]
[null,"TG0001","Information - General information",null,{"$f":"IF($D$6=\"Reported\",\"@ForceFilingCode:true\",IF($D$6=\"Not Reported\",\"@ForceFilingCode:false\",\"\"))","v":""}]
[null,"TG0101","Holdings ISIN - Holdings in listed shares, investment fund shares or units (ISIN)",null,{"$f":"IF($D$7=\"Reported\",\"@ForceFilingCode:true\",IF($D$7=\"Not Reported\",\"@ForceFilingCode:false\",\"\"))","v":""}]
[null,"TG0102","Holdings ISIN - Holdings in debt securities (ISIN)",null,{"$f":"IF($D$8=\"Reported\",\"@ForceFilingCode:true\",IF($D$8=\"Not Reported\",\"@ForceFilingCode:false\",\"\"))","v":""}]
[null,"TG0103","Holdings ISIN - Holdings in securities denominated in units but paying interest (ISIN)",null,{"$f":"IF($D$9=\"Reported\",\"@ForceFilingCode:true\",IF($D$9=\"Not Reported\",\"@ForceFilingCode:false\",\"\"))","v":""}]
[null,"TG0201","Holdings NON ISIN - Holdings in debt securities (NON ISIN)",null,{"$f":"IF($D$10=\"Reported\",\"@ForceFilingCode:true\",IF($D$10=\"Not Reported\",\"@ForceFilingCode:false\",\"\"))","v":""}]
[null,"TG0202","Holdings NON ISIN - Holdings in investment fund shares or units (NON ISIN)",null,{"$f":"IF($D$11=\"Reported\",\"@ForceFilingCode:true\",IF($D$11=\"Not Reported\",\"@ForceFilingCode:false\",\"\"))","v":""}]
[null,"TG0301","Issuances ISIN - Issued listed shares and investment fund shares or units (ISIN)",null,{"$f":"IF($D$12=\"Reported\",\"@ForceFilingCode:true\",IF($D$12=\"Not Reported\",\"@ForceFilingCode:false\",\"\"))","v":""}]
[null,"TG0302","Issuances ISIN - Issued debt securities (ISIN)",null,{"$f":"IF($D$13=\"Reported\",\"@ForceFilingCode:true\",IF($D$13=\"Not Reported\",\"@ForceFilingCode:false\",\"\"))","v":""}]
[null,"TG0303","Issuances ISIN - Issued securities by securitisation vehicles (ISIN)",null,{"$f":"IF($D$14=\"Reported\",\"@ForceFilingCode:true\",IF($D$14=\"Not Reported\",\"@ForceFilingCode:false\",\"\"))","v":""}]
[null,"TG0401","Issuances NON ISIN - Issued debt securities (NON ISIN)",null,{"$f":"IF($D$15=\"Reported\",\"@ForceFilingCode:true\",IF($D$15=\"Not Reported\",\"@ForceFilingCode:false\",\"\"))","v":""}]
[null,"TG0402","Issuances NON ISIN - Issued securities by securitisation vehicles (NON ISIN)",null,{"$f":"IF($D$16=\"Reported\",\"@ForceFilingCode:true\",IF($D$16=\"Not Reported\",\"@ForceFilingCode:false\",\"\"))","v":""}]
[null,"TG0404","Issuances NON ISIN - Issued Investment Fund shares or units (NON ISIN) no LEI",null,{"$f":"IF($D$17=\"Reported\",\"@ForceFilingCode:true\",IF($D$17=\"Not Reported\",\"@ForceFilingCode:false\",\"\"))","v":""}]
[null,"TG0501","Direct investments - Direct investment and own holdership equities (ISIN, assets)",null,{"$f":"IF($D$18=\"Reported\",\"@ForceFilingCode:true\",IF($D$18=\"Not Reported\",\"@ForceFilingCode:false\",\"\"))","v":""}]
[null,"TG0502","Direct investments - Direct investment and own holdership debt securities (ISIN, assets)",null,{"$f":"IF($D$19=\"Reported\",\"@ForceFilingCode:true\",IF($D$19=\"Not Reported\",\"@ForceFilingCode:false\",\"\"))","v":""}]
[null,"TG0503","Direct investments - Direct investment Equities (ISIN, liabilities)",null,{"$f":"IF($D$20=\"Reported\",\"@ForceFilingCode:true\",IF($D$20=\"Not Reported\",\"@ForceFilingCode:false\",\"\"))","v":""}]
[null,"TG0504","Direct investments - Direct investment debt securities (ISIN, liabilities)",null,{"$f":"IF($D$21=\"Reported\",\"@ForceFilingCode:true\",IF($D$21=\"Not Reported\",\"@ForceFilingCode:false\",\"\"))","v":""}]
[null,"TG0601","Custodian holdings - Custodian holdings in listed shares, money market funds and investment funds (ISIN)",null,{"$f":"IF($D$22=\"Reported\",\"@ForceFilingCode:true\",IF($D$22=\"Not Reported\",\"@ForceFilingCode:false\",\"\"))","v":""}]
[null,"TG0602","Custodian holdings - Custodian holdings in debt securities (ISIN)",null,{"$f":"IF($D$23=\"Reported\",\"@ForceFilingCode:true\",IF($D$23=\"Not Reported\",\"@ForceFilingCode:false\",\"\"))","v":""}]
[null,"TG0603","Custodian holdings - Custodian emigrants holdings in listed shares and investment fund shares or units (ISIN)",null,{"$f":"IF($D$24=\"Reported\",\"@ForceFilingCode:true\",IF($D$24=\"Not Reported\",\"@ForceFilingCode:false\",\"\"))","v":""}]
[null,"TG0604","Custodian holdings - Custodian emigrants holdings in debt securities (ISIN)",null,{"$f":"IF($D$25=\"Reported\",\"@ForceFilingCode:true\",IF($D$25=\"Not Reported\",\"@ForceFilingCode:false\",\"\"))","v":""}]
[null,"TG0605","Custodian holdings - Custodian immigrants holdings in listed shares and investment fund shares or units (ISIN)",null,{"$f":"IF($D$26=\"Reported\",\"@ForceFilingCode:true\",IF($D$26=\"Not Reported\",\"@ForceFilingCode:false\",\"\"))","v":""}]
[null,"TG0606","Custodian holdings - Custodian immigrants holdings in debt securities (ISIN)",null,{"$f":"IF($D$27=\"Reported\",\"@ForceFilingCode:true\",IF($D$27=\"Not Reported\",\"@ForceFilingCode:false\",\"\"))","v":""}]
[null,"TG0701","Totals - Totals SHSI",null,{"$f":"IF($D$28=\"Reported\",\"@ForceFilingCode:true\",IF($D$28=\"Not Reported\",\"@ForceFilingCode:false\",\"\"))","v":""}]
[null,"TG0702","Totals - Totals HOLD",null,{"$f":"IF($D$29=\"Reported\",\"@ForceFilingCode:true\",IF($D$29=\"Not Reported\",\"@ForceFilingCode:false\",\"\"))","v":""}]
[null,"TG0703","Totals - Totals SV",null,{"$f":"IF($D$30=\"Reported\",\"@ForceFilingCode:true\",IF($D$30=\"Not Reported\",\"@ForceFilingCode:false\",\"\"))","v":""}]
[null,"TG0704","Totals - Totals CUST",null,{"$f":"IF($D$31=\"Reported\",\"@ForceFilingCode:true\",IF($D$31=\"Not Reported\",\"@ForceFilingCode:false\",\"\"))","v":""}]

{"sheet":"Show","index":3,"n_rows":54,"n_cols":7,"rows_kept":54,"cut":false,"hidden":true,"merged":[]}
["Sheet","Prefix","MSR-ALL","MSR-SHSI","MSR-HOLD","MSR-SV","MSR-CUST"]
["TG0001",{"$f":"IF(AND(HLOOKUP('General data'!$E$22,$C$1:$H$2,2,FALSE)=\"X\",Index!D6=\"Reported\"),\"/\",\"!\")","v":"!"},"X","X","X","X","X"]
["TG0101",{"$f":"IF(AND(HLOOKUP('General data'!$E$22,$C$1:$H$3,3,FALSE)=\"X\",Index!D7=\"Reported\"),\"/\",\"!\")","v":"!"},"X","X","X","X"]
["TG0102",{"$f":"IF(AND(HLOOKUP('General data'!$E$22,$C$1:$H$4,4,FALSE)=\"X\",Index!D8=\"Reported\"),\"/\",\"!\")","v":"!"},"X","X","X","X"]
["TG0103",{"$f":"IF(AND(HLOOKUP('General data'!$E$22,$C$1:$H$5,5,FALSE)=\"X\",Index!D9=\"Reported\"),\"/\",\"!\")","v":"!"},"X","X","X","X"]
["TG0201",{"$f":"IF(AND(HLOOKUP('General data'!$E$22,$C$1:$H$6,6,FALSE)=\"X\",Index!D10=\"Reported\"),\"/\",\"!\")","v":"!"},"X","X","X","X"]
["TG0202",{"$f":"IF(AND(HLOOKUP('General data'!$E$22,$C$1:$H$7,7,FALSE)=\"X\",Index!D11=\"Reported\"),\"/\",\"!\")","v":"!"},"X","X","X","X"]
["TG0301",{"$f":"IF(AND(HLOOKUP('General data'!$E$22,$C$1:$H$8,8,FALSE)=\"X\",Index!D12=\"Reported\"),\"/\",\"!\")","v":"!"},"X","X"]
["TG0302",{"$f":"IF(AND(HLOOKUP('General data'!$E$22,$C$1:$H$9,9,FALSE)=\"X\",Index!D13=\"Reported\"),\"/\",\"!\")","v":"!"},"X","X"]
["TG0303",{"$f":"IF(AND(HLOOKUP('General data'!$E$22,$C$1:$H$10,10,FALSE)=\"X\",Index!D14=\"Reported\"),\"/\",\"!\")","v":"!"},"X",null,null,"X"]
["TG0401",{"$f":"IF(AND(HLOOKUP('General data'!$E$22,$C$1:$H$11,11,FALSE)=\"X\",Index!D15=\"Reported\"),\"/\",\"!\")","v":"!"},"X","X"]
["TG0402",{"$f":"IF(AND(HLOOKUP('General data'!$E$22,$C$1:$H$12,12,FALSE)=\"X\",Index!D16=\"Reported\"),\"/\",\"!\")","v":"!"},"X",null,null,"X"]
["TG0404",{"$f":"IF(AND(HLOOKUP('General data'!$E$22,$C$1:$H$13,13,FALSE)=\"X\",Index!D17=\"Reported\"),\"/\",\"!\")","v":"!"},"X","X"]
["TG0501",{"$f":"IF(AND(HLOOKUP('General data'!$E$22,$C$1:$H$14,14,FALSE)=\"X\",Index!D18=\"Reported\"),\"/\",\"!\")","v":"!"},"X","X","X"]
["TG0502",{"$f":"IF(AND(HLOOKUP('General data'!$E$22,$C$1:$H$15,15,FALSE)=\"X\",Index!D19=\"Reported\"),\"/\",\"!\")","v":"!"},"X","X","X"]
["TG0503",{"$f":"IF(AND(HLOOKUP('General data'!$E$22,$C$1:$H$16,16,FALSE)=\"X\",Index!D20=\"Reported\"),\"/\",\"!\")","v":"!"},"X","X"]
["TG0504",{"$f":"IF(AND(HLOOKUP('General data'!$E$22,$C$1:$H$17,17,FALSE)=\"X\",Index!D21=\"Reported\"),\"/\",\"!\")","v":"!"},"X","X"]
["TG0601",{"$f":"IF(AND(HLOOKUP('General data'!$E$22,$C$1:$H$18,18,FALSE)=\"X\",Index!D22=\"Reported\"),\"/\",\"!\")","v":"!"},"X",null,null,null,"X"]
["TG0602",{"$f":"IF(AND(HLOOKUP('General data'!$E$22,$C$1:$H$19,19,FALSE)=\"X\",Index!D23=\"Reported\"),\"/\",\"!\")","v":"!"},"X",null,null,null,"X"]
["TG0603",{"$f":"IF(AND(HLOOKUP('General data'!$E$22,$C$1:$H$20,20,FALSE)=\"X\",Index!D24=\"Reported\"),\"/\",\"!\")","v":"!"},"X",null,null,null,"X"]
["TG0604",{"$f":"IF(AND(HLOOKUP('General data'!$E$22,$C$1:$H$21,21,FALSE)=\"X\",Index!D25=\"Reported\"),\"/\",\"!\")","v":"!"},"X",null,null,null,"X"]
["TG0605",{"$f":"IF(AND(HLOOKUP('General data'!$E$22,$C$1:$H$22,22,FALSE)=\"X\",Index!D26=\"Reported\"),\"/\",\"!\")","v":"!"},"X",null,null,null,"X"]
["TG0606",{"$f":"IF(AND(HLOOKUP('General data'!$E$22,$C$1:$H$23,23,FALSE)=\"X\",Index!D27=\"Reported\"),\"/\",\"!\")","v":"!"},"X",null,null,null,"X"]
["TG0701",{"$f":"IF(AND(HLOOKUP('General data'!$E$22,$C$1:$H$24,24,FALSE)=\"X\",Index!D28=\"Reported\"),\"/\",\"!\")","v":"!"},"X","X"]
["TG0702",{"$f":"IF(AND(HLOOKUP('General data'!$E$22,$C$1:$H$25,25,FALSE)=\"X\",Index!D29=\"Reported\"),\"/\",\"!\")","v":"!"},"X",null,"X"]
["TG0703",{"$f":"IF(AND(HLOOKUP('General data'!$E$22,$C$1:$H$26,26,FALSE)=\"X\",Index!D30=\"Reported\"),\"/\",\"!\")","v":"!"},"X",null,null,"X"]
["TG0704",{"$f":"IF(AND(HLOOKUP('General data'!$E$22,$C$1:$H$27,27,FALSE)=\"X\",Index!D31=\"Reported\"),\"/\",\"!\")","v":"!"},"X",null,null,null,"X"]
[]
[{"$f":"IF(Index!D6=\"Not Reported\",Show!$B$2&\"T00.01 Rows{Z}@ForceFilingCode:false\",\"\")","v":""},{"$f":"IF(Index!D6=\"Not Reported\",Show!$B$2& Show!$B$2&\"T00.01 Rows{Z}@ForceFilingCode:false\",\"\")","v":""}]
[{"$f":"IF(Index!D7=\"Not Reported\",Show!$B$3&\"T01.01 Rows{Z}@ForceFilingCode:false\",\"\")","v":""},{"$f":"IF(Index!D7=\"Not Reported\",Show!$B$3& Show!$B$3&\"T01.01 Rows{Z}@ForceFilingCode:false\",\"\")","v":""}]
[{"$f":"IF(Index!D8=\"Not Reported\",Show!$B$4&\"T01.02 Rows{Z}@ForceFilingCode:false\",\"\")","v":""},{"$f":"IF(Index!D8=\"Not Reported\",Show!$B$4& Show!$B$4&\"T01.02 Rows{Z}@ForceFilingCode:false\",\"\")","v":""}]
[{"$f":"IF(Index!D9=\"Not Reported\",Show!$B$5&\"T01.03 Rows{Z}@ForceFilingCode:false\",\"\")","v":""},{"$f":"IF(Index!D9=\"Not Reported\",Show!$B$5& Show!$B$5&\"T01.03 Rows{Z}@ForceFilingCode:false\",\"\")","v":""}]
[{"$f":"IF(Index!D10=\"Not Reported\",Show!$B$6&\"T02.01 Rows{Z}@ForceFilingCode:false\",\"\")","v":""},{"$f":"IF(Index!D10=\"Not Reported\",Show!$B$6& Show!$B$6&\"T02.01 Rows{Z}@ForceFilingCode:false\",\"\")","v":""}]
[{"$f":"IF(Index!D11=\"Not Reported\",Show!$B$7&\"T02.02 Rows{Z}@ForceFilingCode:false\",\"\")","v":""},{"$f":"IF(Index!D11=\"Not Reported\",Show!$B$7& Show!$B$7&\"T02.02 Rows{Z}@ForceFilingCode:false\",\"\")","v":""}]
[{"$f":"IF(Index!D12=\"Not Reported\",Show!$B$8&\"T03.01 Rows{Z}@ForceFilingCode:false\",\"\")","v":""},{"$f":"IF(Index!D12=\"Not Reported\",Show!$B$8& Show!$B$8&\"T03.01 Rows{Z}@ForceFilingCode:false\",\"\")","v":""}]
[{"$f":"IF(Index!D13=\"Not Reported\",Show!$B$9&\"T03.02 Rows{Z}@ForceFilingCode:false\",\"\")","v":""},{"$f":"IF(Index!D13=\"Not Reported\",Show!$B$9& Show!$B$9&\"T03.02 Rows{Z}@ForceFilingCode:false\",\"\")","v":""}]
[{"$f":"IF(Index!D14=\"Not Reported\",Show!$B$10&\"T03.03 Rows{Z}@ForceFilingCode:false\",\"\")","v":""},{"$f":"IF(Index!D14=\"Not Reported\",Show!$B$10& Show!$B$10&\"T03.03 Rows{Z}@ForceFilingCode:false\",\"\")","v":""}]
[{"$f":"IF(Index!D15=\"Not Reported\",Show!$B$11&\"T04.01 Rows{Z}@ForceFilingCode:false\",\"\")","v":""},{"$f":"IF(Index!D15=\"Not Reported\",Show!$B$11& Show!$B$11&\"T04.01 Rows{Z}@ForceFilingCode:false\",\"\")","v":""}]
[{"$f":"IF(Index!D16=\"Not Reported\",Show!$B$12&\"T04.02 Rows{Z}@ForceFilingCode:false\",\"\")","v":""},{"$f":"IF(Index!D16=\"Not Reported\",Show!$B$12& Show!$B$12&\"T04.02 Rows{Z}@ForceFilingCode:false\",\"\")","v":""}]
[{"$f":"IF(Index!D17=\"Not Reported\",Show!$B$13&\"T04.04 Rows{Z}@ForceFilingCode:false\",\"\")","v":""},{"$f":"IF(Index!D17=\"Not Reported\",Show!$B$13& Show!$B$13&\"T04.04 Rows{Z}@ForceFilingCode:false\",\"\")","v":""}]
[{"$f":"IF(Index!D18=\"Not Reported\",Show!$B$14&\"T05.01 Rows{Z}@ForceFilingCode:false\",\"\")","v":""},{"$f":"IF(Index!D18=\"Not Reported\",Show!$B$14& Show!$B$14&\"T05.01 Rows{Z}@ForceFilingCode:false\",\"\")","v":""}]
[{"$f":"IF(Index!D19=\"Not Reported\",Show!$B$15&\"T05.02 Rows{Z}@ForceFilingCode:false\",\"\")","v":""},{"$f":"IF(Index!D19=\"Not Reported\",Show!$B$15& Show!$B$15&\"T05.02 Rows{Z}@ForceFilingCode:false\",\"\")","v":""}]
[{"$f":"IF(Index!D20=\"Not Reported\",Show!$B$16&\"T05.03 Rows{Z}@ForceFilingCode:false\",\"\")","v":""},{"$f":"IF(Index!D20=\"Not Reported\",Show!$B$16& Show!$B$16&\"T05.03 Rows{Z}@ForceFilingCode:false\",\"\")","v":""}]
[{"$f":"IF(Index!D21=\"Not Reported\",Show!$B$17&\"T05.04 Rows{Z}@ForceFilingCode:false\",\"\")","v":""},{"$f":"IF(Index!D21=\"Not Reported\",Show!$B$17& Show!$B$17&\"T05.04 Rows{Z}@ForceFilingCode:false\",\"\")","v":""}]
[{"$f":"IF(Index!D22=\"Not Reported\",Show!$B$18&\"T06.01 Rows{Z}@ForceFilingCode:false\",\"\")","v":""},{"$f":"IF(Index!D22=\"Not Reported\",Show!$B$18& Show!$B$18&\"T06.01 Rows{Z}@ForceFilingCode:false\",\"\")","v":""}]
[{"$f":"IF(Index!D23=\"Not Reported\",Show!$B$19&\"T06.02 Rows{Z}@ForceFilingCode:false\",\"\")","v":""},{"$f":"IF(Index!D23=\"Not Reported\",Show!$B$19& Show!$B$19&\"T06.02 Rows{Z}@ForceFilingCode:false\",\"\")","v":""}]
[{"$f":"IF(Index!D24=\"Not Reported\",Show!$B$20&\"T06.03 Rows{Z}@ForceFilingCode:false\",\"\")","v":""},{"$f":"IF(Index!D24=\"Not Reported\",Show!$B$20& Show!$B$20&\"T06.03 Rows{Z}@ForceFilingCode:false\",\"\")","v":""}]
[{"$f":"IF(Index!D25=\"Not Reported\",Show!$B$21&\"T06.04 Rows{Z}@ForceFilingCode:false\",\"\")","v":""},{"$f":"IF(Index!D25=\"Not Reported\",Show!$B$21& Show!$B$21&\"T06.04 Rows{Z}@ForceFilingCode:false\",\"\")","v":""}]
[{"$f":"IF(Index!D26=\"Not Reported\",Show!$B$22&\"T06.05 Rows{Z}@ForceFilingCode:false\",\"\")","v":""},{"$f":"IF(Index!D26=\"Not Reported\",Show!$B$22& Show!$B$22&\"T06.05 Rows{Z}@ForceFilingCode:false\",\"\")","v":""}]
[{"$f":"IF(Index!D27=\"Not Reported\",Show!$B$23&\"T06.06 Rows{Z}@ForceFilingCode:false\",\"\")","v":""},{"$f":"IF(Index!D27=\"Not Reported\",Show!$B$23& Show!$B$23&\"T06.06 Rows{Z}@ForceFilingCode:false\",\"\")","v":""}]
[{"$f":"IF(Index!D28=\"Not Reported\",Show!$B$24&\"T07.01 Rows{Z}@ForceFilingCode:false\",\"\")","v":""},{"$f":"IF(Index!D28=\"Not Reported\",Show!$B$24& Show!$B$24&\"T07.01 Rows{Z}@ForceFilingCode:false\",\"\")","v":""}]
[{"$f":"IF(Index!D29=\"Not Reported\",Show!$B$25&\"T07.02 Rows{Z}@ForceFilingCode:false\",\"\")","v":""},{"$f":"IF(Index!D29=\"Not Reported\",Show!$B$25& Show!$B$25&\"T07.02 Rows{Z}@ForceFilingCode:false\",\"\")","v":""}]
[{"$f":"IF(Index!D30=\"Not Reported\",Show!$B$26&\"T07.03 Rows{Z}@ForceFilingCode:false\",\"\")","v":""},{"$f":"IF(Index!D30=\"Not Reported\",Show!$B$26& Show!$B$26&\"T07.03 Rows{Z}@ForceFilingCode:false\",\"\")","v":""}]
[{"$f":"IF(Index!D31=\"Not Reported\",Show!$B$27&\"T07.04 Rows{Z}@ForceFilingCode:false\",\"\")","v":""},{"$f":"IF(Index!D31=\"Not Reported\",Show!$B$27& Show!$B$27&\"T07.04 Rows{Z}@ForceFilingCode:false\",\"\")","v":""}]

{"sheet":"Hierarchies","index":4,"n_rows":263,"n_cols":18,"rows_kept":263,"cut":false,"hidden":true,"merged":[]}
["hier_dom057_001","hier_dom057_001","hier_dom050_043","hier_dom030_008","hier_dom008_003","hier_dom057_002","hier_dom057_002","hier_dom050_042","hier_dom059_001","hier_dom060_001","hier_dom013_001","hier_dom003_001","hier_dom030_006","hier_dom030_006","hier_dom052_006","hier_dom052_006","hier_dom052_005","hier_dom052_005"]
["Not applicable / All or Total","Not applicable / All or Total","Short-term debt securities (original maturity < 1 yr)","Afghanistan","Not applicable / All or Total","Not applicable / All or Total","Not applicable / All or Total","Money market fund shares/units","Equities","Floater","Monthly","US Dollar","Not applicable / All or Total","Not applicable / All or Total","Not applicable / All or Total","Not applicable / All or Total","Not applicable / All or Total","Not applicable / All or Total"]
["CUSIP","CUSIP","Long-term debt securities (original maturity >= 1 yr)","Albania","Non-financial corporations","CUSIP","CUSIP","Non-MMF investment fund shares/units","Debt","Fixed","Quarterly","Pound Sterling","Afghanistan","Afghanistan","Parent company","Parent company","Parent company","Parent company"]
["SEDOL","SEDOL",null,"Algeria","Central bank","SEDOL","SEDOL",null,"Mixed","Zero coupon","Semi annual","Japanese Yen","Albania","Albania","Fellow enterprise","Fellow enterprise","Fellow enterprise","Fellow enterprise"]
["WKN","WKN",null,"American Samoa (East)","Deposit taking corporations","WKN","WKN",null,"Real estate","Other","Annual","Swiss Franc","Algeria","Algeria","Subsidiary","Subsidiary","Subsidiary","Subsidiary"]
["BT","BT",null,"Andorra","Money market funds","BT","BT",null,"Hedge",null,"Other","Renminbi (Chinese) yuan","American Samoa (East)","American Samoa (East)","Own holdership","Own holdership"]
["BBGID","BBGID",null,"Angola","Non MMF investment funds","BBGID","BBGID",null,"Other",null,null,"ADB Unit of Account","Andorra","Andorra"]
["RIC","RIC",null,"Anguilla","Financial vehicle corporations engaged in securitisation","RIC","RIC",null,null,null,null,"Afghan afghani","Angola","Angola"]
["FIGI","FIGI",null,"Antarctica","Other financial corporations excluding financial vehicle corporations","FIGI","FIGI",null,null,null,null,"Albanian lek","Anguilla","Anguilla"]
["Other","Other",null,"Antigua and Barbuda","Financial auxiliaries","RIAD","RIAD",null,null,null,null,"Algerian dinar","Antarctica","Antarctica"]
[null,null,null,"Argentina","Captive financial institutions and money lenders","Other","Other",null,null,null,null,"Angolan kwanza","Antigua and Barbuda","Antigua and Barbuda"]
[null,null,null,"Armenia","Insurance corporations",null,null,null,null,null,null,"Argentine peso","Argentina","Argentina"]
[null,null,null,"Aruba","Pension funds",null,null,null,null,null,null,"Armenian dram","Armenia","Armenia"]
[null,null,null,"Australia","General government",null,null,null,null,null,null,"Aruban florin","Aruba","Aruba"]
[null,null,null,"Austria","Households",null,null,null,null,null,null,"Australian Dollar","Australia","Australia"]
[null,null,null,"Azerbaijan","Non-profit institutions serving households",null,null,null,null,null,null,"Azerbaijan manat","Austria","Austria"]
[null,null,null,"Bahamas",null,null,null,null,null,null,null,"Bahamian dollar","Azerbaijan","Azerbaijan"]
[null,null,null,"Bahrain",null,null,null,null,null,null,null,"Bahraini dinar","Bahamas","Bahamas"]
[null,null,null,"Bangladesh",null,null,null,null,null,null,null,"Bangladeshi taka","Bahrain","Bahrain"]
[null,null,null,"Bank for International Settlements (BIS)",null,null,null,null,null,null,null,"Barbados dollar","Bangladesh","Bangladesh"]
[null,null,null,"Barbados",null,null,null,null,null,null,null,"Belarusian ruble","Bank for International Settlements (BIS)","Bank for International Settlements (BIS)"]
[null,null,null,"Belarus",null,null,null,null,null,null,null,"Belize dollar","Barbados","Barbados"]
[null,null,null,"Belgium",null,null,null,null,null,null,null,"Bermudian dollar","Belarus","Belarus"]
[null,null,null,"Belize",null,null,null,null,null,null,null,"Bhutanese ngultrum","Belgium","Belgium"]
[null,null,null,"Benin",null,null,null,null,null,null,null,"Bolivian mvdol","Belize","Belize"]
[null,null,null,"Bermuda",null,null,null,null,null,null,null,"Boliviano","Benin","Benin"]
[null,null,null,"BES-islands",null,null,null,null,null,null,null,"Bond Markets Unit European Composite Unit (EURCO)","Bermuda","Bermuda"]
[null,null,null,"Bhutan",null,null,null,null,null,null,null,"Bond Markets Unit European Monetary Unit (E.M.U.-6)","BES-islands","BES-islands"]
[null,null,null,"Bolivia",null,null,null,null,null,null,null,"Bond Markets Unit European Unit of Account 17 (E.U.A.-17)","Bhutan","Bhutan"]
[null,null,null,"Bosnia Herzegovina",null,null,null,null,null,null,null,"Bond Markets Unit European Unit of Account 9 (E.U.A.-9)","Bolivia","Bolivia"]
[null,null,null,"Botswana",null,null,null,null,null,null,null,"Bosnia and Herzegovina convertible mark","Bosnia Herzegovina","Bosnia Herzegovina"]
[null,null,null,"Bouvet Island (Bouvetoya)",null,null,null,null,null,null,null,"Botswana pula","Botswana","Botswana"]
[null,null,null,"Brazil",null,null,null,null,null,null,null,"Brazilian real","Bouvet Island (Bouvetoya)","Bouvet Island (Bouvetoya)"]
[null,null,null,"British Indian Ocean territory",null,null,null,null,null,null,null,"Brunei dollar","Brazil","Brazil"]
[null,null,null,"Brunei",null,null,null,null,null,null,null,"Bulgarian lev","British Indian Ocean territory","British Indian Ocean territory"]
[null,null,null,"Bulgaria",null,null,null,null,null,null,null,"Burundi Franc","Brunei","Brunei"]
[null,null,null,"Burkina Faso (formerly Upper Volta)",null,null,null,null,null,null,null,"Cambodian riel","Bulgaria","Bulgaria"]
[null,null,null,"Burundi",null,null,null,null,null,null,null,"Canadian Dollar","Burkina Faso (formerly Upper Volta)","Burkina Faso (formerly Upper Volta)"]
[null,null,null,"Cambodia",null,null,null,null,null,null,null,"Cape Verde escudo","Burundi","Burundi"]
[null,null,null,"Cameroon",null,null,null,null,null,null,null,"Cayman Islands dollar","Cambodia","Cambodia"]
[null,null,null,"Canada",null,null,null,null,null,null,null,"CFA franc BCEAO","Cameroon","Cameroon"]
[null,null,null,"Cape Verde",null,null,null,null,null,null,null,"CFA franc BEAC","Canada","Canada"]
[null,null,null,"Cayman Islands",null,null,null,null,null,null,null,"CFP franc (franc Pacifique)","Cape Verde","Cape Verde"]
[null,null,null,"Central African Republic",null,null,null,null,null,null,null,"Chilean peso","Cayman Islands","Cayman Islands"]
[null,null,null,"Chad",null,null,null,null,null,null,null,"Code reserved for testing purposes","Central African Republic","Central African Republic"]
[null,null,null,"Chile",null,null,null,null,null,null,null,"Colombian peso","Chad","Chad"]
[null,null,null,"China",null,null,null,null,null,null,null,"Comorian franc","Chile","Chile"]
[null,null,null,"Christmas Island (Australian)",null,null,null,null,null,null,null,"Congolese franc","China","China"]
[null,null,null,"Cocos (Keeling) Islands",null,null,null,null,null,null,null,"Costa Rican colon","Christmas Island (Australian)","Christmas Island (Australian)"]
[null,null,null,"Colombia",null,null,null,null,null,null,null,"Croatian kuna","Cocos (Keeling) Islands","Cocos (Keeling) Islands"]
[null,null,null,"Comoros",null,null,null,null,null,null,null,"Cuban convertible peso","Colombia","Colombia"]
[null,null,null,"Congo, The Democratic Republic of",null,null,null,null,null,null,null,"Cuban peso","Comoros","Comoros"]
[null,null,null,"Congo-Brazzaville",null,null,null,null,null,null,null,"Czech koruna","Congo, The Democratic Republic of","Congo, The Democratic Republic of"]
[null,null,null,"Cook Islands",null,null,null,null,null,null,null,"Danish krone","Congo-Brazzaville","Congo-Brazzaville"]
[null,null,null,"Costa Rica",null,null,null,null,null,null,null,"Djibouti Franc","Cook Islands","Cook Islands"]
[null,null,null,"Cote d'Ivoire",null,null,null,null,null,null,null,"Dominican peso","Costa Rica","Costa Rica"]
[null,null,null,"Croatia",null,null,null,null,null,null,null,"East Caribbean dollar","Cote d'Ivoire","Cote d'Ivoire"]
[null,null,null,"Cuba",null,null,null,null,null,null,null,"Egyptian pound","Croatia","Croatia"]
[null,null,null,"Curaçao",null,null,null,null,null,null,null,"El Salvador colon","Cuba","Cuba"]
[null,null,null,"Cyprus",null,null,null,null,null,null,null,"Eritrean nakfa","Curaçao","Curaçao"]
[null,null,null,"Czech Republic",null,null,null,null,null,null,null,"Ethiopian birr","Cyprus","Cyprus"]
[null,null,null,"Denmark",null,null,null,null,null,null,null,"Euro","Czech Republic","Czech Republic"]
[null,null,null,"Djibouti",null,null,null,null,null,null,null,"Falkland Islands pound","Denmark","Denmark"]
[null,null,null,"Dominica",null,null,null,null,null,null,null,"Fiji dollar","Djibouti","Djibouti"]
[null,null,null,"Dominican Republic",null,null,null,null,null,null,null,"Gambian dalasi","Dominica","Dominica"]
[null,null,null,"East Timor",null,null,null,null,null,null,null,"Georgian lari","Dominican Republic","Dominican Republic"]
[null,null,null,"Ecuador",null,null,null,null,null,null,null,"Ghana Cedi","East Timor","East Timor"]
[null,null,null,"Egypt",null,null,null,null,null,null,null,"Gibraltar pound","Ecuador","Ecuador"]
[null,null,null,"El Salvador",null,null,null,null,null,null,null,"Gold (one troy ounce)","Egypt","Egypt"]
[null,null,null,"Equatorial Guinea",null,null,null,null,null,null,null,"Guatemalan quetzal","El Salvador","El Salvador"]
[null,null,null,"Eritrea",null,null,null,null,null,null,null,"Guinean franc","Equatorial Guinea","Equatorial Guinea"]
[null,null,null,"Estonia",null,null,null,null,null,null,null,"Guyana Dollar","Eritrea","Eritrea"]
[null,null,null,"Ethiopia",null,null,null,null,null,null,null,"Haitian gourde","Estonia","Estonia"]
[null,null,null,"EU institutions and other organisations",null,null,null,null,null,null,null,"Honduran lempira","Ethiopia","Ethiopia"]
[null,null,null,"European Bank for Reconstruction and Development (EBRD)",null,null,null,null,null,null,null,"Hong Kong dollar","EU institutions and other organisations","EU institutions and other organisations"]
[null,null,null,"European Central Bank",null,null,null,null,null,null,null,"Hungarian forint","European Bank for Reconstruction and Development (EBRD)","European Bank for Reconstruction and Development (EBRD)"]
[null,null,null,"European Investment Bank",null,null,null,null,null,null,null,"Iceland krona","European Central Bank","European Central Bank"]
[null,null,null,"European Stability Mechanism (ESM)",null,null,null,null,null,null,null,"Indian rupee","European Investment Bank","European Investment Bank"]
[null,null,null,"Falkland Islands (Malvinas)",null,null,null,null,null,null,null,"Indonesian rupiah","European Stability Mechanism (ESM)","European Stability Mechanism (ESM)"]
[null,null,null,"Faroe Islands",null,null,null,null,null,null,null,"Iranian rial","Falkland Islands (Malvinas)","Falkland Islands (Malvinas)"]
[null,null,null,"Fiji",null,null,null,null,null,null,null,"Iraqi dinar","Faroe Islands","Faroe Islands"]
[null,null,null,"Finland",null,null,null,null,null,null,null,"Jamaican dollar","Fiji","Fiji"]
[null,null,null,"France",null,null,null,null,null,null,null,"Jordanian dinar","Finland","Finland"]
[null,null,null,"French Guiana",null,null,null,null,null,null,null,"Kazakhstani tenge","France","France"]
[null,null,null,"French Polynesia",null,null,null,null,null,null,null,"Kenyan shilling","French Guiana","French Guiana"]
[null,null,null,"French Southern Territories",null,null,null,null,null,null,null,"Kuwaiti dinar","French Polynesia","French Polynesia"]
[null,null,null,"Gabon",null,null,null,null,null,null,null,"Kyrgyzstani som","French Southern Territories","French Southern Territories"]
[null,null,null,"Gambia",null,null,null,null,null,null,null,"Lao kip","Gabon","Gabon"]
[null,null,null,"Georgia",null,null,null,null,null,null,null,"Lebanese pound","Gambia","Gambia"]
[null,null,null,"Germany",null,null,null,null,null,null,null,"Lesotho loti","Georgia","Georgia"]
[null,null,null,"Ghana",null,null,null,null,null,null,null,"Liberian dollar","Germany","Germany"]
[null,null,null,"Gibraltar",null,null,null,null,null,null,null,"Libyan dinar","Ghana","Ghana"]
[null,null,null,"Greece",null,null,null,null,null,null,null,"Macanese pataca","Gibraltar","Gibraltar"]
[null,null,null,"Greenland",null,null,null,null,null,null,null,"Macedonian denar","Greece","Greece"]
[null,null,null,"Grenada",null,null,null,null,null,null,null,"Malagasy ariary","Greenland","Greenland"]
[null,null,null,"Guadeloupe",null,null,null,null,null,null,null,"Malawi kwacha","Grenada","Grenada"]
[null,null,null,"Guam",null,null,null,null,null,null,null,"Malaysian ringgit","Guadeloupe","Guadeloupe"]
[null,null,null,"Guatemala",null,null,null,null,null,null,null,"Maldivian rufiyaa","Guam","Guam"]
[null,null,null,"Guernsey, CI",null,null,null,null,null,null,null,"Mauritanian ouguiya","Guatemala","Guatemala"]
[null,null,null,"Guinea",null,null,null,null,null,null,null,"Mauritius rupee","Guernsey, CI","Guernsey, CI"]
[null,null,null,"Guinea-Bissau",null,null,null,null,null,null,null,"Mexican peso","Guinea","Guinea"]
[null,null,null,"Guyana",null,null,null,null,null,null,null,"Mexican Unidad de Inversion","Guinea-Bissau","Guinea-Bissau"]
[null,null,null,"Haiti",null,null,null,null,null,null,null,"Moldovan leu","Guyana","Guyana"]
[null,null,null,"Heard Island and McDonald Islands",null,null,null,null,null,null,null,"Mongolian tögrög","Haiti","Haiti"]
[null,null,null,"Holy See (Vatican City State)",null,null,null,null,null,null,null,"Moroccan dirham","Heard Island and McDonald Islands","Heard Island and McDonald Islands"]
[null,null,null,"Honduras",null,null,null,null,null,null,null,"Mozambique metical","Holy See (Vatican City State)","Holy See (Vatican City State)"]
[null,null,null,"Hong Kong",null,null,null,null,null,null,null,"Myanmar kyat","Honduras","Honduras"]
[null,null,null,"Hungary",null,null,null,null,null,null,null,"Namibia dollar","Hong Kong","Hong Kong"]
[null,null,null,"Iceland",null,null,null,null,null,null,null,"Nepalese rupee","Hungary","Hungary"]
[null,null,null,"India",null,null,null,null,null,null,null,"Netherlands Antillean guilder","Iceland","Iceland"]
[null,null,null,"Indonesia",null,null,null,null,null,null,null,"New Israeli sheqel","India","India"]
[null,null,null,"International Monetary Fund (IMF)",null,null,null,null,null,null,null,"New Taiwan dollar","Indonesia","Indonesia"]
[null,null,null,"Iran",null,null,null,null,null,null,null,"New Zealand dollar","International Monetary Fund (IMF)","International Monetary Fund (IMF)"]
[null,null,null,"Iraq",null,null,null,null,null,null,null,"Nicaraguan córdoba","Iran","Iran"]
[null,null,null,"Ireland",null,null,null,null,null,null,null,"Nigerian naira","Iraq","Iraq"]
[null,null,null,"Israel",null,null,null,null,null,null,null,"No currency","Ireland","Ireland"]
[null,null,null,"Italy",null,null,null,null,null,null,null,"North Korean won","Israel","Israel"]
[null,null,null,"Jamaica",null,null,null,null,null,null,null,"Norwegian krone","Italy","Italy"]
[null,null,null,"Japan",null,null,null,null,null,null,null,"Omani rial","Jamaica","Jamaica"]
[null,null,null,"Jersey, CI",null,null,null,null,null,null,null,"Pakistan rupee","Japan","Japan"]
[null,null,null,"Jordan",null,null,null,null,null,null,null,"Palladium (one troy ounce)","Jersey, CI","Jersey, CI"]
[null,null,null,"Kazakhstan",null,null,null,null,null,null,null,"Panamanian balboa","Jordan","Jordan"]
[null,null,null,"Kenya",null,null,null,null,null,null,null,"Papua New Guinean kina","Kazakhstan","Kazakhstan"]
[null,null,null,"Kiribati",null,null,null,null,null,null,null,"Paraguayan guaraní","Kenya","Kenya"]
[null,null,null,"Korea North",null,null,null,null,null,null,null,"Peruvian sol","Kiribati","Kiribati"]
[null,null,null,"Korea South",null,null,null,null,null,null,null,"Philippine peso","Korea North","Korea North"]
[null,null,null,"Kosovo",null,null,null,null,null,null,null,"Platinum (one troy ounce)","Korea South","Korea South"]
[null,null,null,"Kuwait",null,null,null,null,null,null,null,"Polish złoty","Kosovo","Kosovo"]
[null,null,null,"Kyrgyzstan",null,null,null,null,null,null,null,"Qatari riyal","Kuwait","Kuwait"]
[null,null,null,"Laos",null,null,null,null,null,null,null,"Romanian leu","Kyrgyzstan","Kyrgyzstan"]
[null,null,null,"Latvia",null,null,null,null,null,null,null,"Russian ruble","Laos","Laos"]
[null,null,null,"Lebanon",null,null,null,null,null,null,null,"Rwanda franc","Latvia","Latvia"]
[null,null,null,"Lesotho",null,null,null,null,null,null,null,"Saint Helena pound","Lebanon","Lebanon"]
[null,null,null,"Liberia",null,null,null,null,null,null,null,"Samoan tala","Lesotho","Lesotho"]
[null,null,null,"Libya",null,null,null,null,null,null,null,"São Tomé and Príncipe dobra","Liberia","Liberia"]
[null,null,null,"Liechtenstein",null,null,null,null,null,null,null,"Saudi riyal","Libya","Libya"]
[null,null,null,"Lithuania",null,null,null,null,null,null,null,"Serbian dinar","Liechtenstein","Liechtenstein"]
[null,null,null,"Luxembourg",null,null,null,null,null,null,null,"Seychelles rupee","Lithuania","Lithuania"]
[null,null,null,"Macau",null,null,null,null,null,null,null,"Sierra Leonean leone","Luxembourg","Luxembourg"]
[null,null,null,"Macedonia",null,null,null,null,null,null,null,"Silver (one troy ounce)","Macau","Macau"]
[null,null,null,"Madagascar",null,null,null,null,null,null,null,"Singapore dollar","Macedonia","Macedonia"]
[null,null,null,"Malawi",null,null,null,null,null,null,null,"Solomon Islands dollar","Madagascar","Madagascar"]
[null,null,null,"Malaysia",null,null,null,null,null,null,null,"Somali shilling","Malawi","Malawi"]
[null,null,null,"Maldives",null,null,null,null,null,null,null,"South African rand","Malaysia","Malaysia"]
[null,null,null,"Mali",null,null,null,null,null,null,null,"South Korean won","Maldives","Maldives"]
[null,null,null,"Malta",null,null,null,null,null,null,null,"South Sudanese pound","Mali","Mali"]
[null,null,null,"Man, Isle of",null,null,null,null,null,null,null,"Special drawing rights","Malta","Malta"]
[null,null,null,"Marshall Islands",null,null,null,null,null,null,null,"Sri Lanka rupee","Man, Isle of","Man, Isle of"]
[null,null,null,"Martinique",null,null,null,null,null,null,null,"SUCRE","Marshall Islands","Marshall Islands"]
[null,null,null,"Mauritania",null,null,null,null,null,null,null,"Sudanese pound","Martinique","Martinique"]
[null,null,null,"Mauritius",null,null,null,null,null,null,null,"Surinam dollar","Mauritania","Mauritania"]
[null,null,null,"Mayotte Includes Grande-terre and Pamandzi.",null,null,null,null,null,null,null,"Swazi lilangeni","Mauritius","Mauritius"]
[null,null,null,"Mexico",null,null,null,null,null,null,null,"Swedish Krona","Mayotte Includes Grande-terre and Pamandzi.","Mayotte Includes Grande-terre and Pamandzi."]
[null,null,null,"Micronesia (Federated States of)",null,null,null,null,null,null,null,"Syrian pound","Mexico","Mexico"]
[null,null,null,"Moldova",null,null,null,null,null,null,null,"Tajikistani somoni","Micronesia (Federated States of)","Micronesia (Federated States of)"]
[null,null,null,"Monaco",null,null,null,null,null,null,null,"Tanzanian shilling","Moldova","Moldova"]
[null,null,null,"Mongolia",null,null,null,null,null,null,null,"Thai baht","Monaco","Monaco"]
[null,null,null,"Montenegro",null,null,null,null,null,null,null,"Tongan paʻanga","Mongolia","Mongolia"]
[null,null,null,"Montserrat",null,null,null,null,null,null,null,"Trinidad and Tobago dollar","Montenegro","Montenegro"]
[null,null,null,"Morocco",null,null,null,null,null,null,null,"Tunisian dinar","Montserrat","Montserrat"]
[null,null,null,"Mozambique",null,null,null,null,null,null,null,"Turkish lira","Morocco","Morocco"]
[null,null,null,"Myanmar (formerly Burma)",null,null,null,null,null,null,null,"Turkmenistan new manat","Mozambique","Mozambique"]
[null,null,null,"Namibia",null,null,null,null,null,null,null,"Uganda shilling","Myanmar (formerly Burma)","Myanmar (formerly Burma)"]
[null,null,null,"Nauru",null,null,null,null,null,null,null,"Ukrainian hryvnia","Namibia","Namibia"]
[null,null,null,"Nepal",null,null,null,null,null,null,null,"Unidad de Fomento","Nauru","Nauru"]
[null,null,null,"Netherlands",null,null,null,null,null,null,null,"Unidad de Valor Real","Nepal","Nepal"]
[null,null,null,"New Caledonia",null,null,null,null,null,null,null,"Unidad previsional","Netherlands","Netherlands"]
[null,null,null,"New Zealand",null,null,null,null,null,null,null,"United Arab Emirates dirham","New Caledonia","New Caledonia"]
[null,null,null,"Nicaragua",null,null,null,null,null,null,null,"United States dollar (next day)","New Zealand","New Zealand"]
[null,null,null,"Niger",null,null,null,null,null,null,null,"Uruguay Peso en Unidades Indexadas","Nicaragua","Nicaragua"]
[null,null,null,"Nigeria",null,null,null,null,null,null,null,"Uruguayan peso","Niger","Niger"]
[null,null,null,"Niue",null,null,null,null,null,null,null,"Uzbekistan som","Nigeria","Nigeria"]
[null,null,null,"Norfolk Island",null,null,null,null,null,null,null,"Vanuatu vatu","Niue","Niue"]
[null,null,null,"Northern Mariana Islands",null,null,null,null,null,null,null,"Venezuelan bolívar soberano","Norfolk Island","Norfolk Island"]
[null,null,null,"Norway",null,null,null,null,null,null,null,"Vietnamese đồng","Northern Mariana Islands","Northern Mariana Islands"]
[null,null,null,"OECD organisations",null,null,null,null,null,null,null,"WIR Euro (complementary currency)","Norway","Norway"]
[null,null,null,"Oman",null,null,null,null,null,null,null,"WIR Franc (complementary currency)","OECD organisations","OECD organisations"]
[null,null,null,"Other regional and international organisatons",null,null,null,null,null,null,null,"Yemeni rial","Oman","Oman"]
[null,null,null,"Pakistan",null,null,null,null,null,null,null,"Zambian kwacha","Other regional and international organisatons","Other regional and international organisatons"]
[null,null,null,"Palau",null,null,null,null,null,null,null,"Zimbabwe dollar","Pakistan","Pakistan"]
[null,null,null,"Palestinian Territory (Gaza and Jericho)",null,null,null,null,null,null,null,null,"Palau","Palau"]
[null,null,null,"Panama",null,null,null,null,null,null,null,null,"Palestinian Territory (Gaza and Jericho)","Palestinian Territory (Gaza and Jericho)"]
[null,null,null,"Papua New Guinea",null,null,null,null,null,null,null,null,"Panama","Panama"]
[null,null,null,"Paraguay",null,null,null,null,null,null,null,null,"Papua New Guinea","Papua New Guinea"]
[null,null,null,"Peru",null,null,null,null,null,null,null,null,"Paraguay","Paraguay"]
[null,null,null,"Philippines",null,null,null,null,null,null,null,null,"Peru","Peru"]
[null,null,null,"Pitcairn",null,null,null,null,null,null,null,null,"Philippines","Philippines"]
[null,null,null,"Poland",null,null,null,null,null,null,null,null,"Pitcairn","Pitcairn"]
[null,null,null,"Portugal",null,null,null,null,null,null,null,null,"Poland","Poland"]
[null,null,null,"Puerto Rico",null,null,null,null,null,null,null,null,"Portugal","Portugal"]
[null,null,null,"Qatar",null,null,null,null,null,null,null,null,"Puerto Rico","Puerto Rico"]
[null,null,null,"Reunion",null,null,null,null,null,null,null,null,"Qatar","Qatar"]
[null,null,null,"Romania",null,null,null,null,null,null,null,null,"Reunion","Reunion"]
[null,null,null,"Russia",null,null,null,null,null,null,null,null,"Romania","Romania"]
[null,null,null,"Rwanda",null,null,null,null,null,null,null,null,"Russia","Russia"]
[null,null,null,"Saint Barthélemy",null,null,null,null,null,null,null,null,"Rwanda","Rwanda"]
[null,null,null,"Saint Helena",null,null,null,null,null,null,null,null,"Saint Barthélemy","Saint Barthélemy"]
[null,null,null,"Saint Kitts and Nevis",null,null,null,null,null,null,null,null,"Saint Helena","Saint Helena"]
[null,null,null,"Saint Lucia",null,null,null,null,null,null,null,null,"Saint Kitts and Nevis","Saint Kitts and Nevis"]
[null,null,null,"Saint Maarten (Dutch part)",null,null,null,null,null,null,null,null,"Saint Lucia","Saint Lucia"]
[null,null,null,"Saint Martin (French part)",null,null,null,null,null,null,null,null,"Saint Maarten (Dutch part)","Saint Maarten (Dutch part)"]
[null,null,null,"Saint Pierre and Miquelon",null,null,null,null,null,null,null,null,"Saint Martin (French part)","Saint Martin (French part)"]
[null,null,null,"Saint Vincent and the Grenadines",null,null,null,null,null,null,null,null,"Saint Pierre and Miquelon","Saint Pierre and Miquelon"]
[null,null,null,"Samoa",null,null,null,null,null,null,null,null,"Saint Vincent and the Grenadines","Saint Vincent and the Grenadines"]
[null,null,null,"San Marino",null,null,null,null,null,null,null,null,"Samoa","Samoa"]
[null,null,null,"Sao Tome and Principe",null,null,null,null,null,null,null,null,"San Marino","San Marino"]
[null,null,null,"Saudi Arabia",null,null,null,null,null,null,null,null,"Sao Tome and Principe","Sao Tome and Principe"]
[null,null,null,"Senegal",null,null,null,null,null,null,null,null,"Saudi Arabia","Saudi Arabia"]
[null,null,null,"Serbia",null,null,null,null,null,null,null,null,"Senegal","Senegal"]
[null,null,null,"Seychelles",null,null,null,null,null,null,null,null,"Serbia","Serbia"]
[null,null,null,"Sierra Leone",null,null,null,null,null,null,null,null,"Seychelles","Seychelles"]
[null,null,null,"Singapore",null,null,null,null,null,null,null,null,"Sierra Leone","Sierra Leone"]
[null,null,null,"Single resolution board",null,null,null,null,null,null,null,null,"Singapore","Singapore"]
[null,null,null,"Slovakia",null,null,null,null,null,null,null,null,"Single resolution board","Single resolution board"]
[null,null,null,"Slovenia",null,null,null,null,null,null,null,null,"Slovakia","Slovakia"]
[null,null,null,"Solomon Islands",null,null,null,null,null,null,null,null,"Slovenia","Slovenia"]
[null,null,null,"Somalia",null,null,null,null,null,null,null,null,"Solomon Islands","Solomon Islands"]
[null,null,null,"South Africa",null,null,null,null,null,null,null,null,"Somalia","Somalia"]
[null,null,null,"South Georgia and South Sandwich Islands",null,null,null,null,null,null,null,null,"South Africa","South Africa"]
[null,null,null,"South Sudan",null,null,null,null,null,null,null,null,"South Georgia and South Sandwich Islands","South Georgia and South Sandwich Islands"]
[null,null,null,"Spain",null,null,null,null,null,null,null,null,"South Sudan","South Sudan"]
[null,null,null,"Sri Lanka",null,null,null,null,null,null,null,null,"Spain","Spain"]
[null,null,null,"Sudan",null,null,null,null,null,null,null,null,"Sri Lanka","Sri Lanka"]
[null,null,null,"Suriname",null,null,null,null,null,null,null,null,"Sudan","Sudan"]
[null,null,null,"Svalbard and Jan Mayen Islands",null,null,null,null,null,null,null,null,"Suriname","Suriname"]
[null,null,null,"Swaziland",null,null,null,null,null,null,null,null,"Svalbard and Jan Mayen Islands","Svalbard and Jan Mayen Islands"]
[null,null,null,"Sweden",null,null,null,null,null,null,null,null,"Swaziland","Swaziland"]
[null,null,null,"Switzerland",null,null,null,null,null,null,null,null,"Sweden","Sweden"]
[null,null,null,"Syria",null,null,null,null,null,null,null,null,"Switzerland","Switzerland"]
[null,null,null,"Taiwan",null,null,null,null,null,null,null,null,"Syria","Syria"]
[null,null,null,"Tajikistan",null,null,null,null,null,null,null,null,"Taiwan","Taiwan"]
[null,null,null,"Tanzania",null,null,null,null,null,null,null,null,"Tajikistan","Tajikistan"]
[null,null,null,"Thailand",null,null,null,null,null,null,null,null,"Tanzania","Tanzania"]
[null,null,null,"Togo",null,null,null,null,null,null,null,null,"Thailand","Thailand"]
[null,null,null,"Tokelau",null,null,null,null,null,null,null,null,"Togo","Togo"]
[null,null,null,"Tonga",null,null,null,null,null,null,null,null,"Tokelau","Tokelau"]
[null,null,null,"Trinidad and Tobago",null,null,null,null,null,null,null,null,"Tonga","Tonga"]
[null,null,null,"Tunisia",null,null,null,null,null,null,null,null,"Trinidad and Tobago","Trinidad and Tobago"]
[null,null,null,"Turkey",null,null,null,null,null,null,null,null,"Tunisia","Tunisia"]
[null,null,null,"Turkmenistan",null,null,null,null,null,null,null,null,"Turkey","Turkey"]
[null,null,null,"Turks and Caicos Islands",null,null,null,null,null,null,null,null,"Turkmenistan","Turkmenistan"]
[null,null,null,"Tuvalu (formerly Ellice Islands)",null,null,null,null,null,null,null,null,"Turks and Caicos Islands","Turks and Caicos Islands"]
[null,null,null,"Uganda",null,null,null,null,null,null,null,null,"Tuvalu (formerly Ellice Islands)","Tuvalu (formerly Ellice Islands)"]
[null,null,null,"Ukraine",null,null,null,null,null,null,null,null,"Uganda","Uganda"]
[null,null,null,"United Arab Emirates",null,null,null,null,null,null,null,null,"Ukraine","Ukraine"]
[null,null,null,"United Kingdom",null,null,null,null,null,null,null,null,"United Arab Emirates","United Arab Emirates"]
[null,null,null,"United Nations organisations",null,null,null,null,null,null,null,null,"United Kingdom","United Kingdom"]
[null,null,null,"United States Minor Outlying Islands",null,null,null,null,null,null,null,null,"United Nations organisations","United Nations organisations"]
[null,null,null,"United States of America",null,null,null,null,null,null,null,null,"United States Minor Outlying Islands","United States Minor Outlying Islands"]
[null,null,null,"Uruguay",null,null,null,null,null,null,null,null,"United States of America","United States of America"]
[null,null,null,"Uzbekistan",null,null,null,null,null,null,null,null,"Uruguay","Uruguay"]
[null,null,null,"Vanuatu",null,null,null,null,null,null,null,null,"Uzbekistan","Uzbekistan"]
[null,null,null,"Venezuela",null,null,null,null,null,null,null,null,"Vanuatu","Vanuatu"]
[null,null,null,"Vietnam",null,null,null,null,null,null,null,null,"Venezuela","Venezuela"]
[null,null,null,"Virgin Islands (British)",null,null,null,null,null,null,null,null,"Vietnam","Vietnam"]
[null,null,null,"Virgin Islands of the US",null,null,null,null,null,null,null,null,"Virgin Islands (British)","Virgin Islands (British)"]
[null,null,null,"Wallis and Futuna Islands",null,null,null,null,null,null,null,null,"Virgin Islands of the US","Virgin Islands of the US"]
[null,null,null,"Western Sahara",null,null,null,null,null,null,null,null,"Wallis and Futuna Islands","Wallis and Futuna Islands"]
[null,null,null,"Worldbank (IBRD)",null,null,null,null,null,null,null,null,"Western Sahara","Western Sahara"]
[null,null,null,"Yemen (North)",null,null,null,null,null,null,null,null,"Worldbank (IBRD)","Worldbank (IBRD)"]
[null,null,null,"Zambia",null,null,null,null,null,null,null,null,"Yemen (North)","Yemen (North)"]
[null,null,null,"Zimbabwe",null,null,null,null,null,null,null,null,"Zambia","Zambia"]
[null,null,null,null,null,null,null,null,null,null,null,null,"Zimbabwe","Zimbabwe"]

{"sheet":"TG0001","index":5,"n_rows":19,"n_cols":10,"rows_kept":19,"cut":false,"hidden":true,"merged":[[1,1,1,14],[4,1,4,11],[8,3,9,3],[10,3,11,3]]}
["Back to Index"]
[null,"Information - General information"]
[]
[]
[null,"T00.01 - General information"]
[]
[]
[]
[null,null,null,"x-axis"]
[]
[null,null,null,"Responsible for reporting"]
[]
[null,null,null,"010",null,null,null,null,{"$f":"Show!$B$2&\"T00.01 Rows {\"&COLUMN($C$1)&\"}\"&Index!$E$6","v":"!T00.01 Rows {3}"},{"$f":"Show!$B$2&\"T00.01 Columns {\"&COLUMN($D$1)&\"}\"","v":"!T00.01 Columns {4}"}]
[null,"y-axis",""]
[null,"Contact details",""]
[null,"Name","010"]
[null,"Telephone number","020"]
[null,"e-mail address","030"]
[null,null,null,null,null,null,null,null,{"$f":"Show!$B$2&Show!$B$2&\"T00.01 Rows {\"&COLUMN($C$1)&\"}\"","v":"!!T00.01 Rows {3}"},{"$f":"Show!$B$2&Show!$B$2&\"T00.01 Columns {\"&COLUMN($D$1)&\"}\"","v":"!!T00.01 Columns {4}"}]

{"sheet":"TG0101","index":6,"n_rows":17,"n_cols":23,"rows_kept":17,"cut":false,"hidden":true,"merged":[[12,3,12,4],[12,5,13,5],[12,6,13,6],[1,1,1,14],[4,1,4,11],[8,1,13,1],[8,2,9,9],[10,2,10,8],[11,2,13,2],[11,3,11,6],[11,7,13,7],[11,8,13,8],[11,9,13,9]]}
["Back to Index"]
[null,"Holdings ISIN - Holdings in listed shares, investment fund shares or units (ISIN)"]
[]
[]
[null,"T01.01 - Holdings in listed shares, investment fund shares or units (ISIN)"]
[]
[]
[]
[null,"ISIN-code","x-axis"]
[]
[null,null,"Positions and transactions",null,null,null,null,null,null,"Income"]
[null,null,"Position at the beginning of the month (units)","Changes during the month",null,null,null,"Position at the end of the month (units)","Position at the end of the month (market value)","Dividend amount received during the month"]
[null,null,null,"Transactions",null,"Other changes (units)","Rectifications (units)"]
[null,null,null,"Purchases (transaction value)","Sales\n (transaction value)"]
[null,"D01","010","020","030","040","050","060","070","080",null,null,null,null,null,null,null,null,null,null,null,{"$f":"Show!$B$3&\"T01.01 Rows {\"&COLUMN($B$1)&\"}\"&Index!$E$7","v":"!T01.01 Rows {2}"},{"$f":"Show!$B$3&\"T01.01 Columns {\"&COLUMN($B$1)&\"}\"","v":"!T01.01 Columns {2}"}]
[]
[null,null,null,null,null,null,null,null,null,null,null,null,null,null,null,null,null,null,null,null,null,{"$f":"Show!$B$3&Show!$B$3&\"T01.01 Rows {\"&COLUMN($B$1)&\"}\"","v":"!!T01.01 Rows {2}"},{"$f":"Show!$B$3&Show!$B$3&\"T01.01 Columns {\"&COLUMN($J$1)&\"}\"","v":"!!T01.01 Columns {10}"}]

{"sheet":"TG0102","index":7,"n_rows":17,"n_cols":25,"rows_kept":17,"cut":false,"hidden":true,"merged":[[11,9,13,9],[11,10,13,10],[11,11,13,11],[12,3,12,4],[12,5,13,5],[12,6,13,6],[1,1,1,14],[4,1,4,11],[8,1,13,1],[8,2,9,11],[10,2,10,8],[10,9,10,11],[11,2,13,2],[11,3,11,6],[11,7,13,7],[11,8,13,8]]}
["Back to Index"]
[null,"Holdings ISIN - Holdings in debt securities (ISIN)"]
[]
[]
[null,"T01.02 - Holdings in debt securities (ISIN)"]
[]
[]
[]
[null,"ISIN-code","x-axis"]
[]
[null,null,"Positions and transactions",null,null,null,null,null,null,"Income"]
[null,null,"Position at the beginning of the month (face value)","Changes during the month",null,null,null,"Position at the end of the month (face value)","Position at the end of the month (market value)","Sold interest during the month","Purchased interest during the month","Coupon amount received during the month"]
[null,null,null,"Transactions",null,"Other changes (face value)","Rectifications (face value)"]
[null,null,null,"Purchases (transaction value, excluding interest)","Sales/redemptions (transaction value, excluding interest)"]
[null,"D01","010","020","030","040","050","060","070","080","090","100",null,null,null,null,null,null,null,null,null,null,null,{"$f":"Show!$B$4&\"T01.02 Rows {\"&COLUMN($B$1)&\"}\"&Index!$E$8","v":"!T01.02 Rows {2}"},{"$f":"Show!$B$4&\"T01.02 Columns {\"&COLUMN($B$1)&\"}\"","v":"!T01.02 Columns {2}"}]
[]
[null,null,null,null,null,null,null,null,null,null,null,null,null,null,null,null,null,null,null,null,null,null,null,{"$f":"Show!$B$4&Show!$B$4&\"T01.02 Rows {\"&COLUMN($B$1)&\"}\"","v":"!!T01.02 Rows {2}"},{"$f":"Show!$B$4&Show!$B$4&\"T01.02 Columns {\"&COLUMN($L$1)&\"}\"","v":"!!T01.02 Columns {12}"}]

{"sheet":"TG0103","index":8,"n_rows":17,"n_cols":25,"rows_kept":17,"cut":false,"hidden":true,"merged":[[11,9,13,9],[11,10,13,10],[11,11,13,11],[12,3,12,4],[12,5,13,5],[12,6,13,6],[1,1,1,14],[4,1,4,11],[8,1,13,1],[8,2,9,11],[10,2,10,8],[10,9,10,11],[11,2,13,2],[11,3,11,6],[11,7,13,7],[11,8,13,8]]}
["Back to Index"]
[null,"Holdings ISIN - Holdings in securities denominated in units but paying interest (ISIN)"]
[]
[]
[null,"T01.03 - Holdings in securities denominated in units but paying interest (ISIN)"]
[]
[]
[]
[null,"ISIN-code","x-axis"]
[]
[null,null,"Positions and transactions",null,null,null,null,null,null,"Income"]
[null,null,"Position at the beginning of the month (units)","Changes during the month",null,null,null,"Position at the end of the month (units)","Position at the end of the month (market value)","Sold interest during the month","Purchased interest during the month","Coupon amount received during the month"]
[null,null,null,"Transactions",null,"Other changes (units)","Rectifications (units)"]
[null,null,null,"Purchases\n (transaction value, excluding interest)","Sales/Redemptions\n (transaction value, excluding interest)"]
[null,"D01","010","020","030","040","050","060","070","080","090","100",null,null,null,null,null,null,null,null,null,null,null,{"$f":"Show!$B$5&\"T01.03 Rows {\"&COLUMN($B$1)&\"}\"&Index!$E$9","v":"!T01.03 Rows {2}"},{"$f":"Show!$B$5&\"T01.03 Columns {\"&COLUMN($B$1)&\"}\"","v":"!T01.03 Columns {2}"}]
[]
[null,null,null,null,null,null,null,null,null,null,null,null,null,null,null,null,null,null,null,null,null,null,null,{"$f":"Show!$B$5&Show!$B$5&\"T01.03 Rows {\"&COLUMN($B$1)&\"}\"","v":"!!T01.03 Rows {2}"},{"$f":"Show!$B$5&Show!$B$5&\"T01.03 Columns {\"&COLUMN($L$1)&\"}\"","v":"!!T01.03 Columns {12}"}]

{"sheet":"TG0201","index":9,"n_rows":17,"n_cols":37,"rows_kept":17,"cut":false,"hidden":true,"merged":[[12,12,13,12],[12,15,13,15],[12,16,13,16],[12,17,13,17],[12,18,13,18],[12,19,13,19],[10,8,10,13],[10,14,10,20],[11,8,13,8],[11,9,11,12],[11,13,13,13],[11,14,13,14],[11,15,11,19],[11,20,13,20],[12,9,12,10],[12,11,13,11],[1,1,1,14],[4,1,4,11],[8,1,13,1],[8,2,13,2],[8,3,9,20],[10,3,13,3],[10,4,13,4],[10,5,13,5],[10,6,13,6],[10,7,13,7]]}
["Back to Index"]
[null,"Holdings NON ISIN - Holdings in debt securities (NON ISIN)"]
[]
[]
[null,"T02.01 - Holdings in debt securities (NON ISIN)"]
[]
[]
[]
[null,"Type of security identifier","Security identifier","x-axis"]
[]
[null,null,null,"Type of instrument","LEI","Issuer country","Issuer sector","Issuer name","Positions and transactions",null,null,null,null,null,"Income"]
[null,null,null,null,null,null,null,null,"Position at the beginning of the month (market value)","Changes during the month",null,null,null,"Position at the end of the month (market value)","Position of accrued interest at the beginning of the month","Changes during the month",null,null,null,null,"Position of accrued interest at the end of the month"]
[null,null,null,null,null,null,null,null,null,"Transactions",null,"Other changes (market value)","Rectifications (market value)",null,null,"Accrued interest during the month","Sold interest during the month","Purchased interest during the month","Coupon amount received during the month","Revaluation and other changes"]
[null,null,null,null,null,null,null,null,null,"Purchases\n (transaction value, excluding interest)","Sales/Redemptions\n (transaction value, excluding interest)"]
[null,"D01","D02","010","020","030","040","050","060","070","080","090","100","110","120","130","140","150","160","170","180",null,null,null,null,null,null,null,null,null,null,null,null,null,null,{"$f":"Show!$B$6&\"T02.01 Rows {\"&COLUMN($B$1)&\"}\"&Index!$E$10","v":"!T02.01 Rows {2}"},{"$f":"Show!$B$6&\"T02.01 Columns {\"&COLUMN($B$1)&\"}\"","v":"!T02.01 Columns {2}"}]
[]
[null,null,null,null,null,null,null,null,null,null,null,null,null,null,null,null,null,null,null,null,null,null,null,null,null,null,null,null,null,null,null,null,null,null,null,{"$f":"Show!$B$6&Show!$B$6&\"T02.01 Rows {\"&COLUMN($B$1)&\"}\"","v":"!!T02.01 Rows {2}"},{"$f":"Show!$B$6&Show!$B$6&\"T02.01 Columns {\"&COLUMN($U$1)&\"}\"","v":"!!T02.01 Columns {21}"}]

{"sheet":"TG0202","index":10,"n_rows":17,"n_cols":34,"rows_kept":17,"cut":false,"hidden":true,"merged":[[10,8,13,8],[10,9,10,16],[11,9,13,9],[11,10,11,15],[11,16,13,16],[11,17,13,17],[12,10,12,11],[12,12,12,13],[12,14,13,14],[12,15,13,15],[1,1,1,14],[4,1,4,11],[8,1,13,1],[8,2,13,2],[8,3,9,17],[10,3,13,3],[10,4,13,4],[10,5,13,5],[10,6,13,6],[10,7,13,7]]}
["Back to Index"]
[null,"Holdings NON ISIN - Holdings in investment fund shares or units (NON ISIN)"]
[]
[]
[null,"T02.02 - Holdings in investment fund shares or units (NON ISIN)"]
[]
[]
[]
[null,"Type of security identifier","Security identifier","x-axis"]
[]
[null,null,null,"Type of instrument","Type of investment fund","LEI","Issuer country","Issuer sector","Issuer name","Positions and transactions",null,null,null,null,null,null,null,"Income"]
[null,null,null,null,null,null,null,null,null,"Position at the beginning of the month (market value)","Changes during the month",null,null,null,null,null,"Position at the end of the month (market value)","Dividend amount received during the month"]
[null,null,null,null,null,null,null,null,null,null,"Transactions",null,"Revaluation",null,"Other changes (market value)","Rectifications (market value)"]
[null,null,null,null,null,null,null,null,null,null,"Purchases (transaction value)","Sales\n (transaction value)","Exchange rate changes","Price changes"]
[null,"D01","D02","010","020","030","040","050","060","070","080","090","100","110","120","130","140","150",null,null,null,null,null,null,null,null,null,null,null,null,null,null,{"$f":"Show!$B$7&\"T02.02 Rows {\"&COLUMN($B$1)&\"}\"&Index!$E$11","v":"!T02.02 Rows {2}"},{"$f":"Show!$B$7&\"T02.02 Columns {\"&COLUMN($B$1)&\"}\"","v":"!T02.02 Columns {2}"}]
[]
[null,null,null,null,null,null,null,null,null,null,null,null,null,null,null,null,null,null,null,null,null,null,null,null,null,null,null,null,null,null,null,null,{"$f":"Show!$B$7&Show!$B$7&\"T02.02 Rows {\"&COLUMN($B$1)&\"}\"","v":"!!T02.02 Rows {2}"},{"$f":"Show!$B$7&Show!$B$7&\"T02.02 Columns {\"&COLUMN($R$1)&\"}\"","v":"!!T02.02 Columns {18}"}]

{"sheet":"TG0301","index":11,"n_rows":17,"n_cols":23,"rows_kept":17,"cut":false,"hidden":true,"merged":[[12,3,12,4],[12,5,13,5],[12,6,13,6],[1,1,1,14],[4,1,4,11],[8,1,13,1],[8,2,9,9],[10,2,10,8],[11,2,13,2],[11,3,11,6],[11,7,13,7],[11,8,13,8],[11,9,13,9]]}
["Back to Index"]
[null,"Issuances ISIN - Issued listed shares and investment fund shares or units (ISIN)"]
[]
[]
[null,"T03.01 - Issued listed shares and investment fund shares or units (ISIN)"]
[]
[]
[]
[null,"ISIN-code","x-axis"]
[]
[null,null,"Postions and transactions",null,null,null,null,null,null,"Income"]
[null,null,"Position at the beginning of the month (units)","Changes during the month",null,null,null,"Position at the end of the month (units)","Position at the end of the month (market value)","Dividend amount paid during the month"]
[null,null,null,"Transactions",null,"Other changes (units)","Rectifications (units)"]
[null,null,null,"Issuance or inflow (amount raised)","Buyback or outflow (amount paid)"]
[null,"D01","010","020","030","040","050","060","070","080",null,null,null,null,null,null,null,null,null,null,null,{"$f":"Show!$B$8&\"T03.01 Rows {\"&COLUMN($B$1)&\"}\"&Index!$E$12","v":"!T03.01 Rows {2}"},{"$f":"Show!$B$8&\"T03.01 Columns {\"&COLUMN($B$1)&\"}\"","v":"!T03.01 Columns {2}"}]
[]
[null,null,null,null,null,null,null,null,null,null,null,null,null,null,null,null,null,null,null,null,null,{"$f":"Show!$B$8&Show!$B$8&\"T03.01 Rows {\"&COLUMN($B$1)&\"}\"","v":"!!T03.01 Rows {2}"},{"$f":"Show!$B$8&Show!$B$8&\"T03.01 Columns {\"&COLUMN($J$1)&\"}\"","v":"!!T03.01 Columns {10}"}]

{"sheet":"TG0302","index":12,"n_rows":17,"n_cols":40,"rows_kept":17,"cut":false,"hidden":true,"merged":[[11,23,13,23],[12,3,12,7],[12,8,12,9],[12,10,13,10],[12,11,13,11],[12,15,13,15],[12,16,13,16],[12,17,13,17],[12,18,13,18],[12,19,13,19],[11,13,13,13],[11,14,13,14],[11,15,11,19],[11,20,13,20],[11,21,13,21],[11,22,13,22],[1,1,1,14],[4,1,4,11],[8,1,13,1],[8,2,9,23],[10,2,10,13],[10,14,10,20],[10,21,10,23],[11,2,13,2],[11,3,11,11],[11,12,13,12]]}
["Back to Index"]
[null,"Issuances ISIN - Issued debt securities (ISIN)"]
[]
[]
[null,"T03.02 - Issued debt securities (ISIN)"]
[]
[]
[]
[null,"ISIN-code","x-axis"]
[]
[null,null,"Positions and transactions",null,null,null,null,null,null,null,null,null,null,null,"Income",null,null,null,null,null,null,"Other"]
[null,null,"Position at the beginning of the month (face value)","Changes during the month",null,null,null,null,null,null,null,null,"Position at the end of the month (face value)","Position at the end of the month (market value)","Position of accrued interest at the beginning of the month","Changes during the month",null,null,null,null,"Position of accrued interest at the end of the month","Coupon type","Coupon percentage","Coupon frequency"]
[null,null,null,"Transactions",null,null,null,null,"Revaluation",null,"Other changes (face value)","Rectifications (face value)",null,null,null,"Accrued interest during the month","Sold interest (issuance)","Purchased interest (early redemption)","Coupon amount paid during the month","Revaluation and other changes"]
[null,null,null,"Issuance\n (face value)","Issuance price","Partial/early redemption (face value)","Partial/early redemption price","Redemption (face value)","Exchange rate changes","Price changes"]
[null,"D01","010","020","030","040","050","060","070","080","090","100","110","120","130","140","150","160","170","180","190","200","210","220",null,null,null,null,null,null,null,null,null,null,null,null,null,null,{"$f":"Show!$B$9&\"T03.02 Rows {\"&COLUMN($B$1)&\"}\"&Index!$E$13","v":"!T03.02 Rows {2}"},{"$f":"Show!$B$9&\"T03.02 Columns {\"&COLUMN($B$1)&\"}\"","v":"!T03.02 Columns {2}"}]
[]
[null,null,null,null,null,null,null,null,null,null,null,null,null,null,null,null,null,null,null,null,null,null,null,null,null,null,null,null,null,null,null,null,null,null,null,null,null,null,{"$f":"Show!$B$9&Show!$B$9&\"T03.02 Rows {\"&COLUMN($B$1)&\"}\"","v":"!!T03.02 Rows {2}"},{"$f":"Show!$B$9&Show!$B$9&\"T03.02 Columns {\"&COLUMN($X$1)&\"}\"","v":"!!T03.02 Columns {24}"}]

{"sheet":"TG0303","index":13,"n_rows":17,"n_cols":43,"rows_kept":17,"cut":false,"hidden":true,"merged":[[11,26,13,26],[12,6,12,10],[12,11,13,11],[12,12,13,12],[12,16,13,16],[12,17,13,17],[12,18,13,18],[12,19,13,19],[12,20,13,20],[11,16,11,20],[11,21,13,21],[11,22,13,22],[11,23,13,23],[11,24,13,24],[11,25,13,25],[11,4,13,4],[11,5,13,5],[11,6,11,12],[11,13,13,13],[11,14,13,14],[11,15,13,15],[1,1,1,14],[4,1,4,11],[8,1,13,1],[8,2,9,26],[10,2,10,4],[10,5,10,14],[10,15,10,21],[10,22,10,26],[11,2,13,2],[11,3,13,3]]}
["Back to Index"]
[null,"Issuances ISIN - Issued securities by securitisation vehicles (ISIN)"]
[]
[]
[null,"T03.03 - Issued securities by securitisation vehicles (ISIN)"]
[]
[]
[]
[null,"ISIN-code","x-axis"]
[]
[null,null,"Outstanding amount by holder",null,null,"Positions and transactions",null,null,null,null,null,null,null,null,null,"Income",null,null,null,null,null,null,"Other"]
[null,null,"Fully retained securitisation (face value)","Retained part of externally placed securitisation (face value)","Non-retained part of securitisation (face value)","Position at the beginning of the month (face value)","Changes during the month",null,null,null,null,null,null,"Position at the end of the month (face value)","Position at the end of the month (market value)","Position of accrued interest at the beginning of the month","Changes during the month",null,null,null,null,"Position of accrued interest at the end of the month","Issuance date","Maturity date","Coupon type","Coupon percentage","Coupon frequency"]
[null,null,null,null,null,null,"Transactions",null,null,null,null,"Other changes (face value)","Rectifications (face value)",null,null,null,"Accrued interest during the month","Sold interest (issuance)","Purchased interest (early redemption)","Coupon amount paid during the month","Revaluation and other changes"]
[null,null,null,null,null,null,"Issuance\n (face value)","Issuance price","Partial/early redemption (face value)","Partial/early redemption price","Redemption (face value)"]
[null,"D01","010","020","030","040","050","060","070","080","090","100","110","120","130","140","150","160","170","180","190","200","210","220","230","240","250",null,null,null,null,null,null,null,null,null,null,null,null,null,null,{"$f":"Show!$B$10&\"T03.03 Rows {\"&COLUMN($B$1)&\"}\"&Index!$E$14","v":"!T03.03 Rows {2}"},{"$f":"Show!$B$10&\"T03.03 Columns {\"&COLUMN($B$1)&\"}\"","v":"!T03.03 Columns {2}"}]
[]
[null,null,null,null,null,null,null,null,null,null,null,null,null,null,null,null,null,null,null,null,null,null,null,null,null,null,null,null,null,null,null,null,null,null,null,null,null,null,null,null,null,{"$f":"Show!$B$10&Show!$B$10&\"T03.03 Rows {\"&COLUMN($B$1)&\"}\"","v":"!!T03.03 Rows {2}"},{"$f":"Show!$B$10&Show!$B$10&\"T03.03 Columns {\"&COLUMN($AA$1)&\"}\"","v":"!!T03.03 Columns {27}"}]

{"sheet":"TG0401","index":14,"n_rows":17,"n_cols":47,"rows_kept":17,"cut":false,"hidden":true,"merged":[[12,17,13,17],[12,18,13,18],[12,19,13,19],[12,20,13,20],[12,21,13,21],[11,23,13,23],[11,24,13,24],[11,25,13,25],[11,26,13,26],[11,27,13,27],[11,28,13,28],[11,5,11,13],[11,14,13,14],[11,15,13,15],[11,16,13,16],[11,17,11,21],[11,22,13,22],[12,5,12,9],[12,10,12,11],[12,12,13,12],[12,13,13,13],[1,1,1,14],[4,1,4,11],[8,1,13,1],[8,2,13,2],[8,3,9,28],[10,3,13,3],[10,4,10,15],[10,16,10,22],[10,23,10,28],[11,4,13,4]]}
["Back to Index"]
[null,"Issuances NON ISIN - Issued debt securities (NON ISIN)"]
[]
[]
[null,"T04.01 - Issued debt securities (NON ISIN)"]
[]
[]
[]
[null,"Type of security identifier","Security identifier","x-axis"]
[]
[null,null,null,"Type of instrument","Positions and transactions",null,null,null,null,null,null,null,null,null,null,null,"Income",null,null,null,null,null,null,"Other"]
[null,null,null,null,"Position at the beginning of the month (face value)","Changes during the month",null,null,null,null,null,null,null,null,"Position at the end of the month (face value)","Position at the end of the month (market value)","Position of accrued interest at the beginning of the month","Changes during the month",null,null,null,null,"Position of accrued interest at the end of the month","Issuance date","Maturity date","Coupon type","Coupon percentage","Coupon frequency","Currency (original issue)"]
[null,null,null,null,null,"Transactions",null,null,null,null,"Revaluation",null,"Other changes (face value)","Rectifications (face value)",null,null,null,"Accrued interest during the month","Sold interest (issuance)","Purchased interest (early redemption)","Coupon amount paid during the month","Revaluation and other changes"]
[null,null,null,null,null,"Issuance\n (face value)","Issuance price","Partial/early redemption (face value)","Partial/early redemption price","Redemption (face value)","Exchange rate changes","Price changes"]
[null,"D01","D02","010","020","030","040","050","060","070","080","090","100","110","120","130","140","150","160","170","180","190","200","210","220","230","240","250","260",null,null,null,null,null,null,null,null,null,null,null,null,null,null,null,null,{"$f":"Show!$B$11&\"T04.01 Rows {\"&COLUMN($B$1)&\"}\"&Index!$E$15","v":"!T04.01 Rows {2}"},{"$f":"Show!$B$11&\"T04.01 Columns {\"&COLUMN($B$1)&\"}\"","v":"!T04.01 Columns {2}"}]
[]
[null,null,null,null,null,null,null,null,null,null,null,null,null,null,null,null,null,null,null,null,null,null,null,null,null,null,null,null,null,null,null,null,null,null,null,null,null,null,null,null,null,null,null,null,null,{"$f":"Show!$B$11&Show!$B$11&\"T04.01 Rows {\"&COLUMN($B$1)&\"}\"","v":"!!T04.01 Rows {2}"},{"$f":"Show!$B$11&Show!$B$11&\"T04.01 Columns {\"&COLUMN($AC$1)&\"}\"","v":"!!T04.01 Columns {29}"}]

{"sheet":"TG0402","index":15,"n_rows":17,"n_cols":48,"rows_kept":17,"cut":false,"hidden":true,"merged":[[11,26,13,26],[11,27,13,27],[11,28,13,28],[11,29,13,29],[12,8,12,12],[12,13,13,13],[12,14,13,14],[12,18,13,18],[12,19,13,19],[12,20,13,20],[11,16,13,16],[11,17,13,17],[11,18,11,22],[11,23,13,23],[11,24,13,24],[11,25,13,25],[12,21,13,21],[12,22,13,22],[11,4,13,4],[11,5,13,5],[11,6,13,6],[11,7,13,7],[11,8,11,14],[11,15,13,15],[1,1,1,14],[4,1,4,11],[8,1,13,1],[8,2,13,2],[8,3,9,29],[10,3,13,3],[10,4,10,6],[10,7,10,16],[10,17,10,23],[10,24,10,29]]}
["Back to Index"]
[null,"Issuances NON ISIN - Issued securities by securitisation vehicles (NON ISIN)"]
[]
[]
[null,"T04.02 - Issued securities by securitisation vehicles (NON ISIN)"]
[]
[]
[]
[null,"Type of security identifier","Security identifier","x-axis"]
[]
[null,null,null,"Type of instrument","Outstanding amount by holder",null,null,"Positions and transactions",null,null,null,null,null,null,null,null,null,"Income",null,null,null,null,null,null,"Other"]
[null,null,null,null,"Fully retained securitisation (face value)","Retained part of externally placed securitisation (face value)","Non-retained part of securitisation (face value)","Position at the beginning of the month (face value)","Changes during the month",null,null,null,null,null,null,"Position at the end of the month (face value)","Position at the end of the month (market value)","Position of accrued interest at the beginning of the month","Changes during the month",null,null,null,null,"Position of accrued interest at the end of the month","Issuance date","Maturity date","Coupon type","Coupon percentage","Coupon frequency","Currency (original issue)"]
[null,null,null,null,null,null,null,null,"Transactions",null,null,null,null,"Other changes (face value)","Rectifications (face value)",null,null,null,"Accrued interest during the month","Sold interest (issuance)","Purchased interest (early redemption)","Coupon amount paid during the month","Revaluation and other changes"]
[null,null,null,null,null,null,null,null,"Issuance\n (face value)","Issuance price","Partial/early redemption (face value)","Partial/early redemption price","Redemption (face value)"]
[null,"D01","D02","010","020","030","040","050","060","070","080","090","100","110","120","130","140","150","160","170","180","190","200","210","220","230","240","250","260","270",null,null,null,null,null,null,null,null,null,null,null,null,null,null,null,null,{"$f":"Show!$B$12&\"T04.02 Rows {\"&COLUMN($B$1)&\"}\"&Index!$E$16","v":"!T04.02 Rows {2}"},{"$f":"Show!$B$12&\"T04.02 Columns {\"&COLUMN($B$1)&\"}\"","v":"!T04.02 Columns {2}"}]
[]
[null,null,null,null,null,null,null,null,null,null,null,null,null,null,null,null,null,null,null,null,null,null,null,null,null,null,null,null,null,null,null,null,null,null,null,null,null,null,null,null,null,null,null,null,null,null,{"$f":"Show!$B$12&Show!$B$12&\"T04.02 Rows {\"&COLUMN($B$1)&\"}\"","v":"!!T04.02 Rows {2}"},{"$f":"Show!$B$12&Show!$B$12&\"T04.02 Columns {\"&COLUMN($AD$1)&\"}\"","v":"!!T04.02 Columns {30}"}]

{"sheet":"TG0404","index":16,"n_rows":17,"n_cols":31,"rows_kept":17,"cut":false,"hidden":true,"merged":[[11,12,13,12],[12,5,12,6],[12,7,12,8],[12,9,13,9],[12,10,13,10],[1,1,1,14],[4,1,4,11],[8,1,13,1],[8,2,13,2],[8,3,13,3],[8,4,9,12],[10,4,10,11],[11,4,13,4],[11,5,11,10],[11,11,13,11]]}
["Back to Index"]
[null,"Issuances NON ISIN - Issued Investment Fund shares or units (NON ISIN) no LEI"]
[]
[]
[null,"T04.04 - Issued Investment Fund shares or units (NON ISIN) no LEI"]
[]
[]
[]
[null,"Holder country","Holder sector","Name of holder of participations","x-axis"]
[]
[null,null,null,null,"Positions and transactions",null,null,null,null,null,null,null,"Income"]
[null,null,null,null,"Position at the beginning of the month (market value)","Changes during the month",null,null,null,null,null,"Position at the end of the month (market value)","Dividend amount paid during the month"]
[null,null,null,null,null,"Net issuance",null,"Revaluation",null,"Other changes (market value)","Rectifications (market value)"]
[null,null,null,null,null,"Net inflow (market value)","Net outflow (market value)","Exchange rate changes","Price changes"]
[null,"D01","D02","D03","010","020","030","040","050","060","070","080","090",null,null,null,null,null,null,null,null,null,null,null,null,null,null,null,null,{"$f":"Show!$B$13&\"T04.04 Rows {\"&COLUMN($B$1)&\"}\"&Index!$E$17","v":"!T04.04 Rows {2}"},{"$f":"Show!$B$13&\"T04.04 Columns {\"&COLUMN($B$1)&\"}\"","v":"!T04.04 Columns {2}"}]
[]
[null,null,null,null,null,null,null,null,null,null,null,null,null,null,null,null,null,null,null,null,null,null,null,null,null,null,null,null,null,{"$f":"Show!$B$13&Show!$B$13&\"T04.04 Rows {\"&COLUMN($B$1)&\"}\"","v":"!!T04.04 Rows {2}"},{"$f":"Show!$B$13&Show!$B$13&\"T04.04 Columns {\"&COLUMN($M$1)&\"}\"","v":"!!T04.04 Columns {13}"}]

{"sheet":"TG0501","index":17,"n_rows":17,"n_cols":26,"rows_kept":17,"cut":false,"hidden":true,"merged":[[11,10,13,10],[12,4,12,5],[12,6,13,6],[12,7,13,7],[1,1,1,14],[4,1,4,11],[8,1,13,1],[8,2,13,2],[8,3,9,10],[10,3,10,9],[11,3,13,3],[11,4,11,7],[11,8,13,8],[11,9,13,9]]}
["Back to Index"]
[null,"Direct investments - Direct investment and own holdership equities (ISIN, assets)"]
[]
[]
[null,"T05.01 - Direct investment and own holdership equities (ISIN, assets)"]
[]
[]
[]
[null,"Group relationship","ISIN-code","x-axis"]
[]
[null,null,null,"Positions and transactions",null,null,null,null,null,null,"Income"]
[null,null,null,"Position at the beginning of the month (units)","Changes during the month",null,null,null,"Position at the end of the month (units)","Position at the end of the month (market value)","Dividend amount received during the month"]
[null,null,null,null,"Transactions",null,"Other changes (units)","Rectifications (units)"]
[null,null,null,null,"Purchases (transaction value)","Sales\n (transaction value)"]
[null,"D01","D02","010","020","030","040","050","060","070","080",null,null,null,null,null,null,null,null,null,null,null,null,null,{"$f":"Show!$B$14&\"T05.01 Rows {\"&COLUMN($B$1)&\"}\"&Index!$E$18","v":"!T05.01 Rows {2}"},{"$f":"Show!$B$14&\"T05.01 Columns {\"&COLUMN($B$1)&\"}\"","v":"!T05.01 Columns {2}"}]
[]
[null,null,null,null,null,null,null,null,null,null,null,null,null,null,null,null,null,null,null,null,null,null,null,null,{"$f":"Show!$B$14&Show!$B$14&\"T05.01 Rows {\"&COLUMN($B$1)&\"}\"","v":"!!T05.01 Rows {2}"},{"$f":"Show!$B$14&Show!$B$14&\"T05.01 Columns {\"&COLUMN($K$1)&\"}\"","v":"!!T05.01 Columns {11}"}]

{"sheet":"TG0502","index":18,"n_rows":17,"n_cols":28,"rows_kept":17,"cut":false,"hidden":true,"merged":[[11,9,13,9],[11,10,13,10],[11,11,13,11],[11,12,13,12],[12,4,12,5],[12,6,13,6],[12,7,13,7],[1,1,1,14],[4,1,4,11],[8,1,13,1],[8,2,13,2],[8,3,9,12],[10,3,10,9],[10,10,10,12],[11,3,13,3],[11,4,11,7],[11,8,13,8]]}
["Back to Index"]
[null,"Direct investments - Direct investment and own holdership debt securities (ISIN, assets)"]
[]
[]
[null,"T05.02 - Direct investment and own holdership debt securities (ISIN, assets)"]
[]
[]
[]
[null,"Group relationship","ISIN-code","x-axis"]
[]
[null,null,null,"Positions and transactions",null,null,null,null,null,null,"Income"]
[null,null,null,"Position at the beginning of the month (face value)","Changes during the month",null,null,null,"Position at the end of the month (face value)","Position at the end of the month (market value)","Sold interest during the month","Purchased interest during the month","Coupon amount received during the month"]
[null,null,null,null,"Transactions",null,"Other changes (face value)","Rectifications (face value)"]
[null,null,null,null,"Purchases\n (transaction value, excluding interest)","Sales/Redemptions\n (transaction value, excluding interest)"]
[null,"D01","D02","010","020","030","040","050","060","070","080","090","100",null,null,null,null,null,null,null,null,null,null,null,null,null,{"$f":"Show!$B$15&\"T05.02 Rows {\"&COLUMN($B$1)&\"}\"&Index!$E$19","v":"!T05.02 Rows {2}"},{"$f":"Show!$B$15&\"T05.02 Columns {\"&COLUMN($B$1)&\"}\"","v":"!T05.02 Columns {2}"}]
[]
[null,null,null,null,null,null,null,null,null,null,null,null,null,null,null,null,null,null,null,null,null,null,null,null,null,null,{"$f":"Show!$B$15&Show!$B$15&\"T05.02 Rows {\"&COLUMN($B$1)&\"}\"","v":"!!T05.02 Rows {2}"},{"$f":"Show!$B$15&Show!$B$15&\"T05.02 Columns {\"&COLUMN($M$1)&\"}\"","v":"!!T05.02 Columns {13}"}]

{"sheet":"TG0503","index":19,"n_rows":17,"n_cols":29,"rows_kept":17,"cut":false,"hidden":true,"merged":[[11,10,13,10],[11,11,13,11],[12,5,12,6],[12,7,13,7],[12,8,13,8],[1,1,1,14],[4,1,4,11],[8,1,13,1],[8,2,13,2],[8,3,13,3],[8,4,9,11],[10,4,10,10],[11,4,13,4],[11,5,11,8],[11,9,13,9]]}
["Back to Index"]
[null,"Direct investments - Direct investment Equities (ISIN, liabilities)"]
[]
[]
[null,"T05.03 - Direct investment Equities (ISIN, liabilities)"]
[]
[]
[]
[null,"Group relationship","ISIN-code","Country of investor","x-axis"]
[]
[null,null,null,null,"Positions and transactions",null,null,null,null,null,null,"Income"]
[null,null,null,null,"Position at the beginning of the month (units)","Changes during the month",null,null,null,"Position at the end of the month (units)","Position at the end of the month (market value)","Dividend amount paid during the month"]
[null,null,null,null,null,"Transactions",null,"Other changes (units)","Rectifications (units)"]
[null,null,null,null,null,"Purchases (transaction value)","Sales\n (transaction value)"]
[null,"D01","D02","D03","010","020","030","040","050","060","070","080",null,null,null,null,null,null,null,null,null,null,null,null,null,null,null,{"$f":"Show!$B$16&\"T05.03 Rows {\"&COLUMN($B$1)&\"}\"&Index!$E$20","v":"!T05.03 Rows {2}"},{"$f":"Show!$B$16&\"T05.03 Columns {\"&COLUMN($B$1)&\"}\"","v":"!T05.03 Columns {2}"}]
[]
[null,null,null,null,null,null,null,null,null,null,null,null,null,null,null,null,null,null,null,null,null,null,null,null,null,null,null,{"$f":"Show!$B$16&Show!$B$16&\"T05.03 Rows {\"&COLUMN($B$1)&\"}\"","v":"!!T05.03 Rows {2}"},{"$f":"Show!$B$16&Show!$B$16&\"T05.03 Columns {\"&COLUMN($L$1)&\"}\"","v":"!!T05.03 Columns {12}"}]

{"sheet":"TG0504","index":20,"n_rows":17,"n_cols":31,"rows_kept":17,"cut":false,"hidden":true,"merged":[[11,9,13,9],[11,10,13,10],[11,11,13,11],[11,12,13,12],[11,13,13,13],[12,5,12,6],[12,7,13,7],[12,8,13,8],[1,1,1,14],[4,1,4,11],[8,1,13,1],[8,2,13,2],[8,3,13,3],[8,4,9,13],[10,4,10,10],[10,11,10,13],[11,4,13,4],[11,5,11,8]]}
["Back to Index"]
[null,"Direct investments - Direct investment debt securities (ISIN, liabilities)"]
[]
[]
[null,"T05.04 - Direct investment debt securities (ISIN, liabilities)"]
[]
[]
[]
[null,"Group relationship","ISIN-code","Country of investor","x-axis"]
[]
[null,null,null,null,"Positions and transactions",null,null,null,null,null,null,"Income"]
[null,null,null,null,"Position at the beginning of the month (face value)","Changes during the month",null,null,null,"Position at the end of the month (face value)","Position at the end of the month (market value)","Sold interest during the month","Purchased interest during the month","Coupon amount paid during the month"]
[null,null,null,null,null,"Transactions",null,"Other changes (face value)","Rectifications (face value)"]
[null,null,null,null,null,"Purchases (transaction value, excluding interest)","Sales/redemptions (transaction value, excluding interest)"]
[null,"D01","D02","D03","010","020","030","040","050","060","070","080","090","100",null,null,null,null,null,null,null,null,null,null,null,null,null,null,null,{"$f":"Show!$B$17&\"T05.04 Rows {\"&COLUMN($B$1)&\"}\"&Index!$E$21","v":"!T05.04 Rows {2}"},{"$f":"Show!$B$17&\"T05.04 Columns {\"&COLUMN($B$1)&\"}\"","v":"!T05.04 Columns {2}"}]
[]
[null,null,null,null,null,null,null,null,null,null,null,null,null,null,null,null,null,null,null,null,null,null,null,null,null,null,null,null,null,{"$f":"Show!$B$17&Show!$B$17&\"T05.04 Rows {\"&COLUMN($B$1)&\"}\"","v":"!!T05.04 Rows {2}"},{"$f":"Show!$B$17&Show!$B$17&\"T05.04 Columns {\"&COLUMN($N$1)&\"}\"","v":"!!T05.04 Columns {14}"}]

{"sheet":"TG0601","index":21,"n_rows":17,"n_cols":29,"rows_kept":17,"cut":false,"hidden":true,"merged":[[11,10,13,10],[11,11,13,11],[12,5,12,6],[12,7,13,7],[12,8,13,8],[1,1,1,14],[4,1,4,11],[8,1,13,1],[8,2,13,2],[8,3,13,3],[8,4,9,11],[10,4,10,10],[11,4,13,4],[11,5,11,8],[11,9,13,9]]}
["Back to Index"]
[null,"Custodian holdings - Custodian holdings in listed shares, money market funds and investment funds (ISIN)"]
[]
[]
[null,"T06.01 - Custodian holdings in listed shares, money market funds and investment funds (ISIN)"]
[]
[]
[]
[null,"ISIN-code","Holder country","Holder sector","x-axis"]
[]
[null,null,null,null,"Positions and transactions",null,null,null,null,null,null,"Income"]
[null,null,null,null,"Position at the beginning of the month (units)","Changes during the month",null,null,null,"Position at the end of the month (units)","Position at the end of the month (market value)","Dividend amount received during the month"]
[null,null,null,null,null,"Transactions",null,"Other changes (units)","Rectifications (units)"]
[null,null,null,null,null,"Purchases\n (transaction value)","Sales/Redemptions\n (transaction value)"]
[null,"D01","D02","D03","010","020","030","040","050","060","070","080",null,null,null,null,null,null,null,null,null,null,null,null,null,null,null,{"$f":"Show!$B$18&\"T06.01 Rows {\"&COLUMN($B$1)&\"}\"&Index!$E$22","v":"!T06.01 Rows {2}"},{"$f":"Show!$B$18&\"T06.01 Columns {\"&COLUMN($B$1)&\"}\"","v":"!T06.01 Columns {2}"}]
[]
[null,null,null,null,null,null,null,null,null,null,null,null,null,null,null,null,null,null,null,null,null,null,null,null,null,null,null,{"$f":"Show!$B$18&Show!$B$18&\"T06.01 Rows {\"&COLUMN($B$1)&\"}\"","v":"!!T06.01 Rows {2}"},{"$f":"Show!$B$18&Show!$B$18&\"T06.01 Columns {\"&COLUMN($L$1)&\"}\"","v":"!!T06.01 Columns {12}"}]

{"sheet":"TG0602","index":22,"n_rows":17,"n_cols":31,"rows_kept":17,"cut":false,"hidden":true,"merged":[[11,9,13,9],[11,10,13,10],[11,11,13,11],[11,12,13,12],[11,13,13,13],[12,5,12,6],[12,7,13,7],[12,8,13,8],[1,1,1,14],[4,1,4,11],[8,1,13,1],[8,2,13,2],[8,3,13,3],[8,4,9,13],[10,4,10,10],[10,11,10,13],[11,4,13,4],[11,5,11,8]]}
["Back to Index"]
[null,"Custodian holdings - Custodian holdings in debt securities (ISIN)"]
[]
[]
[null,"T06.02 - Custodian holdings in debt securities (ISIN)"]
[]
[]
[]
[null,"ISIN-code","Holder country","Holder sector","x-axis"]
[]
[null,null,null,null,"Positions and transactions",null,null,null,null,null,null,"Income"]
[null,null,null,null,"Position at the beginning of the month (face value)","Changes during the month",null,null,null,"Position at the end of the month (face value)","Position at the end of the month (market value)","Sold interest during the month","Purchased interest during the month","Coupon amount received during the month"]
[null,null,null,null,null,"Transactions",null,"Other changes (face value)","Rectifications (face value)"]
[null,null,null,null,null,"Purchases\n(transaction value, excluding interest)","Sales/Redemptions\n (transaction value excluding interest)"]
[null,"D01","D02","D03","010","020","030","040","050","060","070","080","090","100",null,null,null,null,null,null,null,null,null,null,null,null,null,null,null,{"$f":"Show!$B$19&\"T06.02 Rows {\"&COLUMN($B$1)&\"}\"&Index!$E$23","v":"!T06.02 Rows {2}"},{"$f":"Show!$B$19&\"T06.02 Columns {\"&COLUMN($B$1)&\"}\"","v":"!T06.02 Columns {2}"}]
[]
[null,null,null,null,null,null,null,null,null,null,null,null,null,null,null,null,null,null,null,null,null,null,null,null,null,null,null,null,null,{"$f":"Show!$B$19&Show!$B$19&\"T06.02 Rows {\"&COLUMN($B$1)&\"}\"","v":"!!T06.02 Rows {2}"},{"$f":"Show!$B$19&Show!$B$19&\"T06.02 Columns {\"&COLUMN($N$1)&\"}\"","v":"!!T06.02 Columns {14}"}]

{"sheet":"TG0603","index":23,"n_rows":14,"n_cols":15,"rows_kept":14,"cut":false,"hidden":true,"merged":[[1,1,1,14],[4,1,4,11],[8,1,10,1],[8,2,10,2],[8,3,9,3]]}
["Back to Index"]
[null,"Custodian holdings - Custodian emigrants holdings in listed shares and investment fund shares or units (ISIN)"]
[]
[]
[null,"T06.03 - Custodian emigrants holdings in listed shares and investment fund shares or units (ISIN)"]
[]
[]
[]
[null,"ISIN-code","Country of destination","x-axis"]
[]
[null,null,null,"Position at the end of the month (units)"]
[null,"D01","D02","010",null,null,null,null,null,null,null,null,null,{"$f":"Show!$B$20&\"T06.03 Rows {\"&COLUMN($B$1)&\"}\"&Index!$E$24","v":"!T06.03 Rows {2}"},{"$f":"Show!$B$20&\"T06.03 Columns {\"&COLUMN($B$1)&\"}\"","v":"!T06.03 Columns {2}"}]
[]
[null,null,null,null,null,null,null,null,null,null,null,null,null,{"$f":"Show!$B$20&Show!$B$20&\"T06.03 Rows {\"&COLUMN($B$1)&\"}\"","v":"!!T06.03 Rows {2}"},{"$f":"Show!$B$20&Show!$B$20&\"T06.03 Columns {\"&COLUMN($D$1)&\"}\"","v":"!!T06.03 Columns {4}"}]

{"sheet":"TG0604","index":24,"n_rows":14,"n_cols":15,"rows_kept":14,"cut":false,"hidden":true,"merged":[[1,1,1,14],[4,1,4,11],[8,1,10,1],[8,2,10,2],[8,3,9,3]]}
["Back to Index"]
[null,"Custodian holdings - Custodian emigrants holdings in debt securities (ISIN)"]
[]
[]
[null,"T06.04 - Custodian emigrants holdings in debt securities (ISIN)"]
[]
[]
[]
[null,"ISIN-code","Country of destination","x-axis"]
[]
[null,null,null,"Position at the end of the month (face value)"]
[null,"D01","D02","010",null,null,null,null,null,null,null,null,null,{"$f":"Show!$B$21&\"T06.04 Rows {\"&COLUMN($B$1)&\"}\"&Index!$E$25","v":"!T06.04 Rows {2}"},{"$f":"Show!$B$21&\"T06.04 Columns {\"&COLUMN($B$1)&\"}\"","v":"!T06.04 Columns {2}"}]
[]
[null,null,null,null,null,null,null,null,null,null,null,null,null,{"$f":"Show!$B$21&Show!$B$21&\"T06.04 Rows {\"&COLUMN($B$1)&\"}\"","v":"!!T06.04 Rows {2}"},{"$f":"Show!$B$21&Show!$B$21&\"T06.04 Columns {\"&COLUMN($D$1)&\"}\"","v":"!!T06.04 Columns {4}"}]

{"sheet":"TG0605","index":25,"n_rows":14,"n_cols":15,"rows_kept":14,"cut":false,"hidden":true,"merged":[[1,1,1,14],[4,1,4,11],[8,1,10,1],[8,2,10,2],[8,3,9,3]]}
["Back to Index"]
[null,"Custodian holdings - Custodian immigrants holdings in listed shares and investment fund shares or units (ISIN)"]
[]
[]
[null,"T06.05 - Custodian immigrants holdings in listed shares and investment fund shares or units (ISIN)"]
[]
[]
[]
[null,"ISIN-code","Country of origin","x-axis"]
[]
[null,null,null,"Position at the end of the month (units)"]
[null,"D01","D02","010",null,null,null,null,null,null,null,null,null,{"$f":"Show!$B$22&\"T06.05 Rows {\"&COLUMN($B$1)&\"}\"&Index!$E$26","v":"!T06.05 Rows {2}"},{"$f":"Show!$B$22&\"T06.05 Columns {\"&COLUMN($B$1)&\"}\"","v":"!T06.05 Columns {2}"}]
[]
[null,null,null,null,null,null,null,null,null,null,null,null,null,{"$f":"Show!$B$22&Show!$B$22&\"T06.05 Rows {\"&COLUMN($B$1)&\"}\"","v":"!!T06.05 Rows {2}"},{"$f":"Show!$B$22&Show!$B$22&\"T06.05 Columns {\"&COLUMN($D$1)&\"}\"","v":"!!T06.05 Columns {4}"}]

{"sheet":"TG0606","index":26,"n_rows":14,"n_cols":15,"rows_kept":14,"cut":false,"hidden":true,"merged":[[1,1,1,14],[4,1,4,11],[8,1,10,1],[8,2,10,2],[8,3,9,3]]}
["Back to Index"]
[null,"Custodian holdings - Custodian immigrants holdings in debt securities (ISIN)"]
[]
[]
[null,"T06.06 - Custodian immigrants holdings in debt securities (ISIN)"]
[]
[]
[]
[null,"ISIN-code","Country of origin","x-axis"]
[]
[null,null,null,"Position at the end of the month (face value)"]
[null,"D01","D02","010",null,null,null,null,null,null,null,null,null,{"$f":"Show!$B$23&\"T06.06 Rows {\"&COLUMN($B$1)&\"}\"&Index!$E$27","v":"!T06.06 Rows {2}"},{"$f":"Show!$B$23&\"T06.06 Columns {\"&COLUMN($B$1)&\"}\"","v":"!T06.06 Columns {2}"}]
[]
[null,null,null,null,null,null,null,null,null,null,null,null,null,{"$f":"Show!$B$23&Show!$B$23&\"T06.06 Rows {\"&COLUMN($B$1)&\"}\"","v":"!!T06.06 Rows {2}"},{"$f":"Show!$B$23&Show!$B$23&\"T06.06 Columns {\"&COLUMN($D$1)&\"}\"","v":"!!T06.06 Columns {4}"}]

{"sheet":"TG0701","index":27,"n_rows":28,"n_cols":12,"rows_kept":28,"cut":false,"hidden":true,"merged":[[1,1,1,14],[4,1,4,11],[8,3,9,5]]}
["Back to Index"]
[null,"Totals - Totals SHSI"]
[]
[]
[null,"T07.01 - Totals SHSI"]
[]
[]
[]
[null,null,null,"x-axis"]
[]
[null,null,null,"Total number of units","Total face value","Total market value"]
[null,null,null,"010","020","030",null,null,null,null,{"$f":"Show!$B$24&\"T07.01 Rows {\"&COLUMN($C$1)&\"}\"&Index!$E$28","v":"!T07.01 Rows {3}"},{"$f":"Show!$B$24&\"T07.01 Columns {\"&COLUMN($D$1)&\"}\"","v":"!T07.01 Columns {4}"}]
[null,"y-axis",""]
[null,"T01.01, Position at the end of the month (units)","010"]
[null,"T01.02, Position at the end of the month (face value)","020"]
[null,"T01.03, Position at the end of the month (units)","030"]
[null,"T02.01, Position at the end of the month (market value)","040"]
[null,"T02.02, Position at the end of the month (market value)","050"]
[null,"T03.01, Position at the end of the month (units)","060"]
[null,"T03.02, Position at the end of the month (face value)","070"]
[null,"T04.01, Position at the end of the month (face value)","080"]
[null,"T04.04, Position at the end of the month (market value)","090"]
[null,"T05.01, Position at the end of the month (units)","100"]
[null,"T05.02, Position at the end of the month (face value)","110"]
[null,"T05.03, Position at the end of the month (units)","120"]
[null,"T05.04, Position at the end of the month (face value)","130"]
[]
[null,null,null,null,null,null,null,null,null,null,{"$f":"Show!$B$24&Show!$B$24&\"T07.01 Rows {\"&COLUMN($C$1)&\"}\"","v":"!!T07.01 Rows {3}"},{"$f":"Show!$B$24&Show!$B$24&\"T07.01 Columns {\"&COLUMN($F$1)&\"}\"","v":"!!T07.01 Columns {6}"}]

{"sheet":"TG0702","index":28,"n_rows":22,"n_cols":12,"rows_kept":22,"cut":false,"hidden":true,"merged":[[1,1,1,14],[4,1,4,11],[8,3,9,5]]}
["Back to Index"]
[null,"Totals - Totals HOLD"]
[]
[]
[null,"T07.02 - Totals HOLD"]
[]
[]
[]
[null,null,null,"x-axis"]
[]
[null,null,null,"Total number of units","Total face value","Total market value"]
[null,null,null,"010","020","030",null,null,null,null,{"$f":"Show!$B$25&\"T07.02 Rows {\"&COLUMN($C$1)&\"}\"&Index!$E$29","v":"!T07.02 Rows {3}"},{"$f":"Show!$B$25&\"T07.02 Columns {\"&COLUMN($D$1)&\"}\"","v":"!T07.02 Columns {4}"}]
[null,"y-axis",""]
[null,"T01.01, Position at the end of the month (units)","010"]
[null,"T01.02, Position at the end of the month (face value)","020"]
[null,"T01.03, Position at the end of the month (units)","030"]
[null,"T02.01, Position at the end of the month (market value)","040"]
[null,"T02.02, Position at the end of the month (market value)","050"]
[null,"T05.01, Position at the end of the month (units)","060"]
[null,"T05.02, Position at the end of the month (face value)","070"]
[]
[null,null,null,null,null,null,null,null,null,null,{"$f":"Show!$B$25&Show!$B$25&\"T07.02 Rows {\"&COLUMN($C$1)&\"}\"","v":"!!T07.02 Rows {3}"},{"$f":"Show!$B$25&Show!$B$25&\"T07.02 Columns {\"&COLUMN($F$1)&\"}\"","v":"!!T07.02 Columns {6}"}]

{"sheet":"TG0703","index":29,"n_rows":22,"n_cols":12,"rows_kept":22,"cut":false,"hidden":true,"merged":[[1,1,1,14],[4,1,4,11],[8,3,9,5]]}
["Back to Index"]
[null,"Totals - Totals SV"]
[]
[]
[null,"T07.03 - Totals SV"]
[]
[]
[]
[null,null,null,"x-axis"]
[]
[null,null,null,"Total number of units","Total face value","Total market value"]
[null,null,null,"010","020","030",null,null,null,null,{"$f":"Show!$B$26&\"T07.03 Rows {\"&COLUMN($C$1)&\"}\"&Index!$E$30","v":"!T07.03 Rows {3}"},{"$f":"Show!$B$26&\"T07.03 Columns {\"&COLUMN($D$1)&\"}\"","v":"!T07.03 Columns {4}"}]
[null,"y-axis",""]
[null,"T01.01, Position at the end of the month (units)","010"]
[null,"T01.02, Position at the end of the month (face value)","020"]
[null,"T01.03, Position at the end of the month (units)","030"]
[null,"T02.01, Position at the end of the month (market value)","040"]
[null,"T02.02, Position at the end of the month (market value)","050"]
[null,"T03.03, Position at the end of the month (face value)","060"]
[null,"T04.02, Position at the end of the month (face value)","070"]
[]
[null,null,null,null,null,null,null,null,null,null,{"$f":"Show!$B$26&Show!$B$26&\"T07.03 Rows {\"&COLUMN($C$1)&\"}\"","v":"!!T07.03 Rows {3}"},{"$f":"Show!$B$26&Show!$B$26&\"T07.03 Columns {\"&COLUMN($F$1)&\"}\"","v":"!!T07.03 Columns {6}"}]

{"sheet":"TG0704","index":30,"n_rows":21,"n_cols":11,"rows_kept":21,"cut":false,"hidden":true,"merged":[[1,1,1,14],[4,1,4,11],[8,3,9,4]]}
["Back to Index"]
[null,"Totals - Totals CUST"]
[]
[]
[null,"T07.04 - Totals CUST"]
[]
[]
[]
[null,null,null,"x-axis"]
[]
[null,null,null,"Total number of units","Total face value"]
[null,null,null,"010","020",null,null,null,null,{"$f":"Show!$B$27&\"T07.04 Rows {\"&COLUMN($C$1)&\"}\"&Index!$E$31","v":"!T07.04 Rows {3}"},{"$f":"Show!$B$27&\"T07.04 Columns {\"&COLUMN($D$1)&\"}\"","v":"!T07.04 Columns {4}"}]
[null,"y-axis",""]
[null,"T06.01, Position at the end of the month (units)","010"]
[null,"T06.02, Position at the end of the month (face value)","020"]
[null,"T06.03, Position at the end of the month (units)","030"]
[null,"T06.04, Position at the end of the month (face value)","040"]
[null,"T06.05, Position at the end of the month (units)","050"]
[null,"T06.06, Position at the end of the month (face value)","060"]
[]
[null,null,null,null,null,null,null,null,null,{"$f":"Show!$B$27&Show!$B$27&\"T07.04 Rows {\"&COLUMN($C$1)&\"}\"","v":"!!T07.04 Rows {3}"},{"$f":"Show!$B$27&Show!$B$27&\"T07.04 Columns {\"&COLUMN($E$1)&\"}\"","v":"!!T07.04 Columns {5}"}]